{"text_format":"3","workbook":"xlsx","n_sheets":1,"sheets":["Presupuesto detallado"],"not_rendered":{"images":1,"defined_names":3},"read":"whole","date_system":"1900"}

{"sheet":"Presupuesto detallado","index":0,"n_rows":344,"n_cols":5,"rows_kept":344}
[null,"PRESUPUESTO DE EJECUCIÓN","Versión",null,"V1"]
[null,"RENOVACIÓN DEL TELEMANDO DE IBAIEDER","Pág:"]
["Código","Resumen","Precio \nunitario","Cantidad (ud)","Importe total\n (IVA no inc)"]
[null,"TOTAL",null,null,{"$f":"E5+E15+E111+E284+E340","v":{"v":164440.91000000003,"d":"164,440.91 €"}}]
["CAP.0","MIGRACIÓN EN ETAP",null,null,{"$f":"SUM(E6:E14)","v":{"v":8664.64,"d":"8,664.64 €"}}]
[null,"DESCARGADOR DE SOBRETENSIONES \nLÍNEA EQUIPO VALVETRAB PHOENIX CONTACT con 4 puertos",{"v":198,"d":"198.00 €"},1,{"$f":"D6*C6","v":{"v":198,"d":"198.00 €"}}]
[null,"SWITCH SHDSL 2 PUERTOS\nETIC 2 PUERTOS + BYPASS XSLAN + BP2400 // Siemens Scalance equivalente",{"v":1020.8,"d":"1,020.80 €"},1,{"$f":"D7*C7","v":{"v":1020.8,"d":"1,020.80 €"}}]
[null,"ROUTER VPN 4G\nETIC IPL-C-100.LE // Siemens Scalance equivalente  Inc. antena, kit montaje y cableado 310.",{"v":599.09,"d":"599.09 €"},1,{"$f":"D8*C8","v":{"v":599.09,"d":"599.09 €"}}]
[null,"ROUTER VPN 4G\nETIC SIG EC-400 4G //Siemens Scalance equivalente capacidad 100 conexiones VPN.\ninc. antena 4G/pequeño material.",{"v":1214.75,"d":"1,214.75 €"},1,{"$f":"D9*C9","v":{"v":1214.75,"d":"1,214.75 €"}}]
[null,"CPU CONCENTRADOR ETAP\nSCHNEIDER M580 o SIMATIC S7-1500, CPU 1250-2PN inc periferia y pequeño material.",{"v":2035,"d":"2,035.00 €"},1,{"$f":"C10*D10","v":{"v":2035,"d":"2,035.00 €"}}]
[null,"1329Feb_",{"v":212,"d":"212.00 €"},1,{"$f":"C11*D11","v":{"v":212,"d":"212.00 €"}}]
[null,"TARJETA COMUNICACIONES\nSIMATIC S7-1500 Ethernet CM1542-1 // Schneider 6GK7542-1AX00-0XE0 BMENOC2501",{"v":835,"d":"835.00 €"},1,{"$f":"C12*D12","v":{"v":835,"d":"835.00 €"}}]
[null,"INSTALACIÓN Y CONEXIONADO PLC CONCENTRADOR\nIncluyendo cableado, borneros y pequeño material para su completo conexionado.",{"v":1100,"d":"1,100.00 €"},1,{"$f":"C13*D13","v":{"v":1100,"d":"1,100.00 €"}}]
[null,"PROGRAMACIÓN COMUNICACIONES ETAP\nConfiguración, parametrización y P.E.M de comunicaciones incluyendo pruebas en taller y emplazamiento, y borrado de anteriores comunicaciones.",{"v":1450,"d":"1,450.00 €"},1,{"$f":"C14*D14","v":{"v":1450,"d":"1,450.00 €"}}]
["CAP.1","COMUNICACIONES SEGMENTO 1",null,null,{"$f":"E16+E28+E41+E55+E64+E74+E88+E100","v":{"v":44955.280000000006,"d":"44,955.28 €"}}]
["CAP.1.1","DERIVACIÓN AZKOITIA S5",null,null,{"$f":"SUM(E17:E27)","v":{"v":5950.389999999999,"d":"5,950.39 €"}}]
[null,"DESCARGADOR DE SOBRETENSIONES \nLÍNEA EQUIPO VALVETRAB PHOENIX CONTACT con 2 puertos",{"v":70,"d":"70.00 €"},1,{"$f":"D17*C17","v":{"v":70,"d":"70.00 €"}}]
[null,"DESCARGADOR DE SOBRETENSIONES \nLÍNEA EQUIPO VALVETRAB PHOENIX CONTACT con 4 puertos",{"v":198,"d":"198.00 €"},1,{"$f":"D18*C18","v":{"v":198,"d":"198.00 €"}}]
[null,"SWITCH SHDSL 2 PUERTOS\nETIC 2 PUERTOS + BYPASS XSLAN + BP2400 // Siemens Scalance equivalente",{"v":1020.8,"d":"1,020.80 €"},1,{"$f":"D19*C19","v":{"v":1020.8,"d":"1,020.80 €"}}]
[null,"SWITCH SHDSL 1 PUERTO\nETIC 1 PUERTO XSLAN + 1400 /Siemenes Scalance equivalente",{"v":742.5,"d":"742.50 €"},1,{"$f":"D20*C20","v":{"v":742.5,"d":"742.50 €"}}]
[null,"ROUTER VPN 4G\nETIC IPL-C-100.LE // Siemens Scalance equivalente  Inc. antena, kit montaje y cableado 310.",{"v":599.09,"d":"599.09 €"},1,{"$f":"D21*C21","v":{"v":599.09,"d":"599.09 €"}}]
[null,"CPU ESTACIÓN REMOTA \nSIMATIC S7-1200 - 1214C 6ES7214-1AG40-0XB0 // Schneider TM251 MESE\n14 ED 24V DC; 10 SD 24 V DC; 2 EA incorporadas Siemens. \nTarjetas TM3DI16, TMDQ16T, TM3AI8 en el caso Schneider.",{"v":470,"d":"470.00 €"},1,{"$f":"C22*D22","v":{"v":470,"d":"470.00 €"}}]
[null,"MÓDULO DE 1 S. ANALÓGICA \nSIMATIC S7-1200, SM1221 //EQUIVALENTE SCHNEIDER",{"v":200,"d":"200.00 €"},1,{"$f":"C23*D23","v":{"v":200,"d":"200.00 €"}}]
[null,"INSTALACIÓN Y CONEXIONADO\nIncluyendo cableado, borneros y pequeño material para su completo conexionado.",{"v":500,"d":"500.00 €"},1,{"$f":"C24*D24","v":{"v":500,"d":"500.00 €"}}]
[null,"PROGRAMACIÓN PLC Y PUESTA EN MARCHA\nConfiguración, parametrización y P.E.M. del PLC local, pruebas en taller y emplazamiento.",{"v":1450,"d":"1,450.00 €"},1,{"$f":"C25*D25","v":{"v":1450,"d":"1,450.00 €"}}]
[null,"PROGRAMACIÓN COMUNICACIONES SWITCHES SHDSL\nConfiguración, parametrización y P.E.M de comunicaciones incluyendo pruebas en taller y emplazamiento, y borrado de anteriores comunicaciones.",{"v":400,"d":"400.00 €"},1,{"$f":"C26*D26","v":{"v":400,"d":"400.00 €"}}]
[null,"PROGRAMACIÓN SCADA\nModificación de la programación, pruebas y puesta en servicio de SCADA Intouch a consecuencia del nuevo hardware y del nuevo mapeado de comunicaciones.",{"v":300,"d":"300.00 €"},1,{"$f":"C27*D27","v":{"v":300,"d":"300.00 €"}}]
["CAP.1.2","DEPÓSITO DANONA S5",null,null,{"$f":"SUM(E29:E40)","v":{"v":5773.8,"d":"5,773.80 €"}}]
[null,"SWITCH SHDSL 2 PUERTOS\nETIC 2 PUERTOS + BYPASS XSLAN + BP2400 // Siemens Scalance equivalente",{"v":1020.8,"d":"1,020.80 €"},1,{"$f":"D29*C29","v":{"v":1020.8,"d":"1,020.80 €"}}]
[null,"DESCARGADOR DE SOBRETENSIONES \nLÍNEA EQUIPO VALVETRAB PHOENIX CONTACT con 4 puertos",{"v":198,"d":"198.00 €"},1,{"$f":"D30*C30","v":{"v":198,"d":"198.00 €"}}]
[null,"CPU ESTACIÓN REMOTA \nSIMATIC S7-1200 - 1214C 6ES7214-1AG40-0XB0 // Schneider TM251 MESE\n14 ED 24V DC; 10 SD 24 V DC; 2 EA incorporadas Siemens. \nTarjetas TM3DI16, TMDQ16T, TM3AI8 en el caso Schneider.",{"v":470,"d":"470.00 €"},1,{"$f":"D31*C31","v":{"v":470,"d":"470.00 €"}}]
[null,"MÓDULO DE 4 E.ANALÓGICAS\nSIMATIC S7-1200, SM 1231, 4 EA //6ES7231-4HF32-0XB0 // Schneider TM3AI8",{"v":250,"d":"250.00 €"},1,{"$f":"C32*D32","v":{"v":250,"d":"250.00 €"}}]
[null,"PANTALLA HMI LOCAL 4\" \nSiemens ETHERNET Y COLOR Basic Pantalla TFT // Schneider equivalente",{"v":315,"d":"315.00 €"},1,{"$f":"C33*D33","v":{"v":315,"d":"315.00 €"}}]
[null,"PUERTA RITTAL AE 1073 RAL7035 \nen sustitución de la existente.",{"v":270,"d":"270.00 €"},1,{"$f":"C34*D34","v":{"v":270,"d":"270.00 €"}}]
[null,"INSTALACIÓN Y CONEXIONADO\nIncluyendo cableado, borneros y pequeño material para su completo conexionado.",{"v":500,"d":"500.00 €"},1,{"$f":"C35*D35","v":{"v":500,"d":"500.00 €"}}]
[null,"INSTALACIÓN NUEVA PUERTA RITTAL\nSustitución de tapa marca Rittal existente por mismo modelo, incluyendo trabajo de troquelado y montaje de canaletas de la nueva puerta.",{"v":100,"d":"100.00 €"},1,{"$f":"C36*D36","v":{"v":100,"d":"100.00 €"}}]
[null,"PROGRAMACIÓN PLC Y PUESTA EN MARCHA\nConfiguración, parametrización y P.E.M. del PLC local, pruebas en taller y emplazamiento.",{"v":1450,"d":"1,450.00 €"},1,{"$f":"C37*D37","v":{"v":1450,"d":"1,450.00 €"}}]
[null,"PROGRAMACIÓN PANTALLA HMI\nConfiguración, parametrización pantalla HMI, pruebas en taller y emplazamiento.",{"v":500,"d":"500.00 €"},1,{"$f":"C38*D38","v":{"v":500,"d":"500.00 €"}}]
[null,"PROGRAMACIÓN COMUNICACIONES SWITCHES SHDSL\nConfiguración, parametrización y P.E.M de comunicaciones incluyendo pruebas en taller y emplazamiento, y borrado de anteriores comunicaciones.",{"v":400,"d":"400.00 €"},1,{"$f":"C39*D39","v":{"v":400,"d":"400.00 €"}}]
[null,"PROGRAMACIÓN SCADA\nModificación de la programación, pruebas y puesta en servicio de SCADA Intouch a consecuencia del nuevo hardware y del nuevo mapeado de comunicaciones. ",{"v":300,"d":"300.00 €"},1,{"$f":"C40*D40","v":{"v":300,"d":"300.00 €"}}]
["CAP.1.3","DEPÓSITO ZESTOA S5",null,null,{"$f":"SUM(E42:E54)","v":{"v":6193.8,"d":"6,193.80 €"}}]
[null,"SWITCH SHDSL 2 PUERTOS\nETIC 2 PUERTOS + BYPASS XSLAN + BP2400 // Siemens Scalance equivalente",{"v":1020.8,"d":"1,020.80 €"},1,{"$f":"D42*C42","v":{"v":1020.8,"d":"1,020.80 €"}}]
[null,"DESCARGADOR DE SOBRETENSIONES \nLÍNEA EQUIPO VALVETRAB PHOENIX CONTACT con 4 puertos",{"v":198,"d":"198.00 €"},1,{"$f":"D43*C43","v":{"v":198,"d":"198.00 €"}}]
[null,"CPU ESTACIÓN REMOTA \nSIMATIC S7-1200 - 1214C 6ES7214-1AG40-0XB0 // SCHNEIDER TM251 MESE\n14 ED 24V DC; 10 SD 24 V DC; 2 EA incorporadas Siemens. \nTarjetas TM3DI16, TMDQ16T, TM3AI8 en el caso Schneider.",{"v":470,"d":"470.00 €"},1,{"$f":"C44*D44","v":{"v":470,"d":"470.00 €"}}]
[null,"MÓDULO DE 16 E. DIGITALES \nSIMATIC S7-1200, SM1221 //6ES7221-1BH32-0XB0 TM3DI16 EN EL CASO DE SCHNEIDER",{"v":200,"d":"200.00 €"},1,{"$f":"C45*D45","v":{"v":200,"d":"200.00 €"}}]
[null,"MÓDULO DE 4 E.ANALÓGICAS\nSIMATIC S7-1200, SM 1231, 4 EA //6ES7231-4HF32-0XB0 // Schneider TM3AI8",{"v":250,"d":"250.00 €"},1,{"$f":"C46*D46","v":{"v":250,"d":"250.00 €"}}]
[null,"PANTALLA HMI LOCAL 4\" \nSiemens ETHERNET Y COLOR Basic Pantalla TFT // Schneider equivalente",{"v":315,"d":"315.00 €"},1,{"$f":"C47*D47","v":{"v":315,"d":"315.00 €"}}]
[null,"PUERTA RITTAL AE 1180 RAL7035 \nen sustitución de la existente.",{"v":290,"d":"290.00 €"},1,{"$f":"C48*D48","v":{"v":290,"d":"290.00 €"}}]
[null,"INSTALACIÓN Y CONEXIONADO\nIncluyendo cableado, borneros y pequeño material para su completo conexionado.",{"v":700,"d":"700.00 €"},1,{"$f":"C49*D49","v":{"v":700,"d":"700.00 €"}}]
[null,"INSTALACIÓN NUEVA PUERTA RITTAL\nSustitución de tapa marca Rittal existente por mismo modelo, incluyendo trabajo de troquelado y montaje de canaletas de la nueva puerta.",{"v":100,"d":"100.00 €"},1,{"$f":"C50*D50","v":{"v":100,"d":"100.00 €"}}]
[null,"PROGRAMACIÓN PLC Y PUESTA EN MARCHA\nConfiguración, parametrización y P.E.M. del PLC local, pruebas en taller y emplazamiento.",{"v":1450,"d":"1,450.00 €"},1,{"$f":"C51*D51","v":{"v":1450,"d":"1,450.00 €"}}]
[null,"PROGRAMACIÓN PANTALLA HMI\nConfiguración, parametrización pantalla HMI, pruebas en taller y emplazamiento.",{"v":500,"d":"500.00 €"},1,{"$f":"C52*D52","v":{"v":500,"d":"500.00 €"}}]
[null,"PROGRAMACIÓN COMUNICACIONES SWITCHES SHDSL\nConfiguración, parametrización y P.E.M de comunicaciones incluyendo pruebas en taller y emplazamiento, y borrado de anteriores comunicaciones.",{"v":400,"d":"400.00 €"},1,{"$f":"C53*D53","v":{"v":400,"d":"400.00 €"}}]
[null,"PROGRAMACIÓN SCADA\nModificación de la programación, pruebas y puesta en servicio de SCADA Intouch a consecuencia del nuevo hardware y del nuevo mapeado de comunicaciones. ",{"v":300,"d":"300.00 €"},1,{"$f":"C54*D54","v":{"v":300,"d":"300.00 €"}}]
["CAP.1.4","BOMBEO AIZARNA S7",null,null,{"$f":"SUM(E56:E63)","v":{"v":4653.8,"d":"4,653.80 €"}}]
[null,"SWITCH SHDSL 2 PUERTOS\nETIC 2 PUERTOS + BYPASS XSLAN + BP2400 // Siemens Scalance equivalente",{"v":1020.8,"d":"1,020.80 €"},1,{"$f":"D56*C56","v":{"v":1020.8,"d":"1,020.80 €"}}]
[null,"DESCARGADOR DE SOBRETENSIONES \nLÍNEA EQUIPO VALVETRAB PHOENIX CONTACT con 4 puertos",{"v":198,"d":"198.00 €"},1,{"$f":"D57*C57","v":{"v":198,"d":"198.00 €"}}]
[null,"CP343-1 LEAN\nMódulo Ethernet SIEMENS 6GK7343-1CX10-0XE0 en sustitución de tarjeta TIM.",{"v":770,"d":"770.00 €"},1,{"$f":"C58*D58","v":{"v":770,"d":"770.00 €"}}]
[null,"CONECTOR DE BUS\nSIEMENS 6ES7390-0AA00-0AA0 S7 // equivalente Schneider",{"v":15,"d":"15.00 €"},1,{"$f":"C59*D59","v":{"v":15,"d":"15.00 €"}}]
[null,"INSTALACIÓN Y CONEXIONADO\nIncluyendo cableado, borneros y pequeño material para su completo conexionado.",{"v":500,"d":"500.00 €"},1,{"$f":"C60*D60","v":{"v":500,"d":"500.00 €"}}]
[null,"PROGRAMACIÓN PLC Y PUESTA EN MARCHA\nConfiguración, parametrización y P.E.M. del PLC local, pruebas en taller y emplazamiento.",{"v":1450,"d":"1,450.00 €"},1,{"$f":"C61*D61","v":{"v":1450,"d":"1,450.00 €"}}]
[null,"PROGRAMACIÓN COMUNICACIONES SWITCHES SHDSL\nConfiguración, parametrización y P.E.M de comunicaciones incluyendo pruebas en taller y emplazamiento, y borrado de anteriores comunicaciones.",{"v":400,"d":"400.00 €"},1,{"$f":"C62*D62","v":{"v":400,"d":"400.00 €"}}]
[null,"PROGRAMACIÓN SCADA\nModificación de la programación, pruebas y puesta en servicio de SCADA Intouch a consecuencia del nuevo hardware y del nuevo mapeado de comunicaciones. ",{"v":300,"d":"300.00 €"},1,{"$f":"C63*D63","v":{"v":300,"d":"300.00 €"}}]
["CAP.1.5","DEPÓSITO AIZARNA",null,null,{"$f":"SUM(E65:E73)","v":{"v":4312.09,"d":"4,312.09 €"}}]
[null,"ROUTER VPN 4G\nETIC IPL-C-100.LE // Siemens Scalance equivalente  Inc. antena, kit montaje y cableado 310.",{"v":599.09,"d":"599.09 €"},1,{"$f":"D65*C65","v":{"v":599.09,"d":"599.09 €"}}]
[null,"DESCARGADOR DE SOBRETENSIONES \nLÍNEA EQUIPO VALVETRAB PHOENIX CONTACT con 4 puertos",{"v":198,"d":"198.00 €"},1,{"$f":"D66*C66","v":{"v":198,"d":"198.00 €"}}]
[null,"MÓDULO DE COMUNICACIONES RS485\nSIMATIC S7-1200, Módulo de comunicación CM 1241 / equivalente Schneider",{"v":145,"d":"145.00 €"},1,{"$f":"C67*D67","v":{"v":145,"d":"145.00 €"}}]
[null,"CPU ESTACIÓN REMOTA \nSIMATIC S7-1200 - 1214C 6ES7214-1AG40-0XB0 // SCHNEIDER TM251 MESE\n14 ED 24V DC; 10 SD 24 V DC; 2 EA incorporadas Siemens. \nTarjetas TM3DI16, TMDQ16T, TM3AI8 en el caso Schneider.",{"v":470,"d":"470.00 €"},1,{"$f":"C68*D68","v":{"v":470,"d":"470.00 €"}}]
[null,"MÓDULO DE 4 E.ANALÓGICAS\nSIMATIC S7-1200, SM 1231, 4 EA //6ES7231-4HF32-0XB0 // Schneider TM3AI8",{"v":250,"d":"250.00 €"},1,{"$f":"C69*D69","v":{"v":250,"d":"250.00 €"}}]
[null,"INSTALACIÓN Y CONEXIONADO\nIncluyendo cableado, borneros y pequeño material para su completo conexionado.",{"v":500,"d":"500.00 €"},1,{"$f":"C70*D70","v":{"v":500,"d":"500.00 €"}}]
[null,"PROGRAMACIÓN PLC Y PUESTA EN MARCHA\nConfiguración, parametrización y P.E.M. del PLC local, pruebas en taller y emplazamiento.",{"v":1450,"d":"1,450.00 €"},1,{"$f":"C71*D71","v":{"v":1450,"d":"1,450.00 €"}}]
[null,"PROGRAMACIÓN COMUNICACIONES SWITCHES SHDSL\nConfiguración, parametrización y P.E.M de comunicaciones incluyendo pruebas en taller y emplazamiento, y borrado de anteriores comunicaciones.",{"v":400,"d":"400.00 €"},1,{"$f":"C72*D72","v":{"v":400,"d":"400.00 €"}}]
[null,"PROGRAMACIÓN SCADA\nModificación de la programación, pruebas y puesta en servicio de SCADA Intouch a consecuencia del nuevo hardware y del nuevo mapeado de comunicaciones. ",{"v":300,"d":"300.00 €"},1,{"$f":"C73*D73","v":{"v":300,"d":"300.00 €"}}]
["CAP.1.6","DEPÓSITO SANSINENEA S5",null,null,{"$f":"SUM(E75:E87)","v":{"v":6328.8,"d":"6,328.80 €"}}]
[null,"SWITCH SHDSL 2 PUERTOS\nETIC 2 PUERTOS + BYPASS XSLAN + BP2400 // Siemens Scalance equivalente",{"v":1020.8,"d":"1,020.80 €"},1,{"$f":"D75*C75","v":{"v":1020.8,"d":"1,020.80 €"}}]
[null,"DESCARGADOR DE SOBRETENSIONES \nLÍNEA EQUIPO VALVETRAB PHOENIX CONTACT con 4 puertos",{"v":198,"d":"198.00 €"},1,{"$f":"D76*C76","v":{"v":198,"d":"198.00 €"}}]
[null,"CPU ESTACIÓN REMOTA \nSIMATIC S7-1200 - 1214C 6ES7214-1AG40-0XB0 // SCHNEIDER TM251 MESE\n14 ED 24V DC; 10 SD 24 V DC; 2 EA incorporadas Siemens. \nTarjetas TM3DI16, TMDQ16T, TM3AI8 en el caso Schneider.",{"v":470,"d":"470.00 €"},1,{"$f":"C77*D77","v":{"v":470,"d":"470.00 €"}}]
[null,"MÓDULO DE 16 E. DIGITALES \nSIMATIC S7-1200, SM1221 //6ES7221-1BH32-0XB0 TM3DI16 EN EL CASO DE SCHNEIDER",{"v":200,"d":"200.00 €"},1,{"$f":"C78*D78","v":{"v":200,"d":"200.00 €"}}]
[null,"MÓDULO DE 4 E.ANALÓGICAS\nSIMATIC S7-1200, SM 1231, 4 EA //6ES7231-4HF32-0XB0 // Schneider TM3AI8",{"v":250,"d":"250.00 €"},1,{"$f":"C79*D79","v":{"v":250,"d":"250.00 €"}}]
[null,"PANTALLA HMI LOCAL 7\" \nSiemens ETHERNET Y COLOR Basic Pantalla TFT //Schneider equivalente",{"v":650,"d":"650.00 €"},1,{"$f":"C80*D80","v":{"v":650,"d":"650.00 €"}}]
[null,"PUERTA RITTAL AE 1180 RAL7035 \nen sustitución de la existente.",{"v":290,"d":"290.00 €"},1,{"$f":"C81*D81","v":{"v":290,"d":"290.00 €"}}]
[null,"INSTALACIÓN Y CONEXIONADO\nIncluyendo cableado, borneros y pequeño material para su completo conexionado.",{"v":500,"d":"500.00 €"},1,{"$f":"C82*D82","v":{"v":500,"d":"500.00 €"}}]
[null,"INSTALACIÓN NUEVA PUERTA RITTAL\nSustitución de tapa marca Rittal existente por mismo modelo, incluyendo trabajo de troquelado y montaje de canaletas de la nueva puerta.",{"v":100,"d":"100.00 €"},1,{"$f":"C83*D83","v":{"v":100,"d":"100.00 €"}}]
[null,"PROGRAMACIÓN PLC Y PUESTA EN MARCHA\nConfiguración, parametrización y P.E.M. del PLC local, pruebas en taller y emplazamiento.",{"v":1450,"d":"1,450.00 €"},1,{"$f":"C84*D84","v":{"v":1450,"d":"1,450.00 €"}}]
[null,"PROGRAMACIÓN PANTALLA HMI\nConfiguración, parametrización pantalla HMI, pruebas en taller y emplazamiento.",{"v":500,"d":"500.00 €"},1,{"$f":"C85*D85","v":{"v":500,"d":"500.00 €"}}]
[null,"PROGRAMACIÓN COMUNICACIONES SWITCHES SHDSL\nConfiguración, parametrización y P.E.M de comunicaciones incluyendo pruebas en taller y emplazamiento, y borrado de anteriores comunicaciones.",{"v":400,"d":"400.00 €"},1,{"$f":"C86*D86","v":{"v":400,"d":"400.00 €"}}]
[null,"PROGRAMACIÓN SCADA\nModificación de la programación, pruebas y puesta en servicio de SCADA Intouch a consecuencia del nuevo hardware y del nuevo mapeado de comunicaciones. ",{"v":300,"d":"300.00 €"},1,{"$f":"C87*D87","v":{"v":300,"d":"300.00 €"}}]
["CAP.1.7","DERIVACIÓN AIZARNAZABAL S5",null,null,{"$f":"SUM(E89:E99)","v":{"v":5938.8,"d":"5,938.80 €"}}]
[null,"SWITCH SHDSL 2 PUERTOS\nETIC 2 PUERTOS + BYPASS XSLAN + BP2400 // Siemens Scalance equivalente",{"v":1020.8,"d":"1,020.80 €"},1,{"$f":"D89*C89","v":{"v":1020.8,"d":"1,020.80 €"}}]
[null,"DESCARGADOR DE SOBRETENSIONES \nLÍNEA EQUIPO VALVETRAB PHOENIX CONTACT con 4 puertos",{"v":198,"d":"198.00 €"},1,{"$f":"D90*C90","v":{"v":198,"d":"198.00 €"}}]
[null,"CPU ESTACIÓN REMOTA \nSIMATIC S7-1200 - 1214C 6ES7214-1AG40-0XB0 // SCHNEIDER TM251 MESE\n14 ED 24V DC; 10 SD 24 V DC; 2 EA incorporadas Siemens. \nTarjetas TM3DI16, TMDQ16T, TM3AI8 en el caso Schneider.",{"v":470,"d":"470.00 €"},1,{"$f":"C91*D91","v":{"v":470,"d":"470.00 €"}}]
[null,"MÓDULO DE 16 E. DIGITALES \nSIMATIC S7-1200, SM1221 //6ES7221-1BH32-0XB0 TM3DI16 EN EL CASO DE SCHNEIDER",{"v":200,"d":"200.00 €"},1,{"$f":"C92*D92","v":{"v":200,"d":"200.00 €"}}]
[null,"MÓDULO DE 4 E.ANALÓGICAS\nSIMATIC S7-1200, SM 1231, 4 EA //6ES7231-4HF32-0XB0 // Schneider TM3AI8",{"v":250,"d":"250.00 €"},1,{"$f":"C93*D93","v":{"v":250,"d":"250.00 €"}}]
[null,"SIMATIC HMI LOCAL 7\" \nSiemens ETHERNET Y COLOR Basic Pantalla TFT Siemens // EQUIVALENTE SCHNEIDER",{"v":650,"d":"650.00 €"},1,{"$f":"C94*D94","v":{"v":650,"d":"650.00 €"}}]
[null,"INSTALACIÓN Y CONEXIONADO\nIncluyendo cableado, borneros y pequeño material para su completo conexionado.",{"v":500,"d":"500.00 €"},1,{"$f":"C95*D95","v":{"v":500,"d":"500.00 €"}}]
[null,"PROGRAMACIÓN PLC Y PUESTA EN MARCHA\nConfiguración, parametrización y P.E.M. del PLC local, pruebas en taller y emplazamiento.",{"v":1450,"d":"1,450.00 €"},1,{"$f":"C96*D96","v":{"v":1450,"d":"1,450.00 €"}}]
[null,"PROGRAMACIÓN PANTALLA HMI\nConfiguración, parametrización pantalla HMI, pruebas en taller y emplazamiento.",{"v":500,"d":"500.00 €"},1,{"$f":"C97*D97","v":{"v":500,"d":"500.00 €"}}]
[null,"PROGRAMACIÓN COMUNICACIONES SWTICHES SHDSL\nConfiguración, parametrización y P.E.M de comunicaciones incluyendo pruebas en taller y emplazamiento, y borrado de anteriores comunicaciones.",{"v":400,"d":"400.00 €"},1,{"$f":"C98*D98","v":{"v":400,"d":"400.00 €"}}]
[null,"PROGRAMACIÓN SCADA\nModificación de la programación, pruebas y puesta en servicio de SCADA Intouch a consecuencia del nuevo hardware y del nuevo mapeado de comunicaciones. ",{"v":300,"d":"300.00 €"},1,{"$f":"C99*D99","v":{"v":300,"d":"300.00 €"}}]
["CAP.1.8","DEPÓSITO AIZARNAZABAL S7",null,null,{"$f":"SUM(E101:E110)","v":{"v":5803.8,"d":"5,803.80 €"}}]
[null,"SWITCH SHDSL 2 PUERTOS\nETIC 2 PUERTOS + BYPASS XSLAN + BP2400 // Siemens Scalance equivalente",{"v":1020.8,"d":"1,020.80 €"},1,{"$f":"D101*C101","v":{"v":1020.8,"d":"1,020.80 €"}}]
[null,"DESCARGADOR DE SOBRETENSIONES \nLÍNEA EQUIPO VALVETRAB PHOENIX CONTACT con 4 puertos",{"v":198,"d":"198.00 €"},1,{"$f":"D102*C102","v":{"v":198,"d":"198.00 €"}}]
[null,"CP343-1 LEAN\nMódulo Ethernet SIEMENS 6GK7343-1CX10-0XE0  en sustitución de tarjeta TIM.",{"v":770,"d":"770.00 €"},1,{"$f":"C103*D103","v":{"v":770,"d":"770.00 €"}}]
[null,"CONECTOR DE BUS\nSIEMENS 6ES7390-0AA00-0AA0 S7 // equivalente Schneider",{"v":15,"d":"15.00 €"},1,{"$f":"C104*D104","v":{"v":15,"d":"15.00 €"}}]
[null,"SIMATIC HMI LOCAL 7\" \nSiemens ETHERNET Y COLOR Basic Pantalla TFT Siemens // EQUIVALENTE SCHNEIDER",{"v":650,"d":"650.00 €"},1,{"$f":"C105*D105","v":{"v":650,"d":"650.00 €"}}]
[null,"INSTALACIÓN Y CONEXIONADO\nIncluyendo cableado, borneros y pequeño material para su completo conexionado.",{"v":500,"d":"500.00 €"},1,{"$f":"C106*D106","v":{"v":500,"d":"500.00 €"}}]
[null,"PROGRAMACIÓN PANTALLA HMI\nConfiguración, parametrización pantalla HMI, pruebas en taller y emplazamiento.",{"v":500,"d":"500.00 €"},1,{"$f":"C107*D107","v":{"v":500,"d":"500.00 €"}}]
[null,"PROGRAMACIÓN PLC Y PUESTA EN MARCHA\nConfiguración, parametrización y P.E.M. del PLC local, pruebas en taller y emplazamiento..",{"v":1450,"d":"1,450.00 €"},1,{"$f":"C108*D108","v":{"v":1450,"d":"1,450.00 €"}}]
[null,"PROGRAMACIÓN COMUNICACIONES SWITCHES SHDSL\nConfiguración, parametrización y P.E.M de comunicaciones incluyendo pruebas en taller y emplazamiento, y borrado de anteriores comunicaciones.",{"v":400,"d":"400.00 €"},1,{"$f":"C109*D109","v":{"v":400,"d":"400.00 €"}}]
[null,"PROGRAMACIÓN SCADA\nModificación de la programación, pruebas y puesta en servicio de SCADA Intouch a consecuencia del nuevo hardware y del nuevo mapeado de comunicaciones. ",{"v":300,"d":"300.00 €"},1,{"$f":"C110*D110","v":{"v":300,"d":"300.00 €"}}]
["CAP.2","COMUNICACIONES SEGMENTO 2",null,null,{"$f":"E112+E127+E141+E150+E165+E174+E186+E199+E212+E221+E229+E244+E253+E268","v":{"v":85111.26000000001,"d":"85,111.26 €"}}]
["CAP.2.1","BOMBEO GETARIA S5",null,null,{"$f":"SUM(E113:E126)","v":{"v":7177.889999999999,"d":"7,177.89 €"}}]
[null,"SWITCH SHDSL 2 PUERTOS\nETIC 2 PUERTOS + BYPASS XSLAN + BP2400 // Siemens Scalance equivalente",{"v":1020.8,"d":"1,020.80 €"},1,{"$f":"D113*C113","v":{"v":1020.8,"d":"1,020.80 €"}}]
[null,"DESCARGADOR DE SOBRETENSIONES \nLÍNEA EQUIPO VALVETRAB PHOENIX CONTACT con 4 puertos",{"v":198,"d":"198.00 €"},1,{"$f":"D114*C114","v":{"v":198,"d":"198.00 €"}}]
[null,"ROUTER VPN 4G\nETIC IPL-C-100.LE // Siemens Scalance equivalente  Inc. antena, kit montaje y cableado 310.",{"v":599.09,"d":"599.09 €"},1,{"$f":"D115*C115","v":{"v":599.09,"d":"599.09 €"}}]
[null,"CPU ESTACIÓN REMOTA \nSIMATIC S7-1200 - 1214C 6ES7214-1AG40-0XB0 // SCHNEIDER TM251 MESE\n14 ED 24V DC; 10 SD 24 V DC; 2 EA incorporadas Siemens. \nTarjetas TM3DI16, TMDQ16T, TM3AI8 en el caso Schneider.",{"v":470,"d":"470.00 €"},1,{"$f":"C116*D116","v":{"v":470,"d":"470.00 €"}}]
[null,"MÓDULO DE 16 E. DIGITALES\nSIMATIC S7-1200, SM1221 //6ES7221-1BH32-0XB0 TM3DI16 EN EL CASO DE SCHNEIDER",{"v":200,"d":"200.00 €"},1,{"$f":"C117*D117","v":{"v":200,"d":"200.00 €"}}]
[null,"MÓDULO DE 4 E.ANALÓGICAS\nSIMATIC S7-1200, SM 1231, 4 EA //6ES7231-4HF32-0XB0 // Schneider TM3AI8",{"v":250,"d":"250.00 €"},2,{"$f":"C118*D118","v":{"v":500,"d":"500.00 €"}}]
[null,"SIMATIC HMI LOCAL 7\"\nSiemens ETHERNET Y COLOR Basic Pantalla TFT Siemens // EQUIVALENTE SCHNEIDER",{"v":650,"d":"650.00 €"},1,{"$f":"C119*D119","v":{"v":650,"d":"650.00 €"}}]
[null,"PUERTA RITTAL AE 1180 RAL7035 \nEn sustitución de la existente.",{"v":290,"d":"290.00 €"},1,{"$f":"C120*D120","v":{"v":290,"d":"290.00 €"}}]
[null,"INSTALACIÓN Y CONEXIONADO\nIncluyendo cableado, borneros y pequeño material para su completo conexionado.",{"v":500,"d":"500.00 €"},1,{"$f":"C121*D121","v":{"v":500,"d":"500.00 €"}}]
[null,"INSTALACIÓN NUEVA PUERTA RITTAL\nSustitución de tapa marca Rittal existente por mismo modelo, incluyendo trabajo de troquelado y montaje de canaletas de la nueva puerta.",{"v":100,"d":"100.00 €"},1,{"$f":"C122*D122","v":{"v":100,"d":"100.00 €"}}]
[null,"PROGRAMACIÓN PLC Y PUESTA EN MARCHA\nConfiguración, parametrización y P.E.M. del PLC local, pruebas en taller y emplazamiento.",{"v":1450,"d":"1,450.00 €"},1,{"$f":"C123*D123","v":{"v":1450,"d":"1,450.00 €"}}]
[null,"PROGRAMACIÓN PANTALLA HMI\nConfiguración, parametrización pantalla HMI, pruebas en taller y emplazamiento.",{"v":500,"d":"500.00 €"},1,{"$f":"C124*D124","v":{"v":500,"d":"500.00 €"}}]
[null,"PROGRAMACIÓN COMUNICACIONES SWITCHES SHDSL\nConfiguración, parametrización y P.E.M de comunicaciones incluyendo pruebas en taller y emplazamiento, y borrado de anteriores comunicaciones.",{"v":400,"d":"400.00 €"},1,{"$f":"C125*D125","v":{"v":400,"d":"400.00 €"}}]
[null,"PROGRAMACIÓN SCADA\nModificación de la programación, pruebas y puesta en servicio de SCADA Intouch a consecuencia del nuevo hardware y del nuevo mapeado de comunicaciones. ",{"v":300,"d":"300.00 €"},1,{"$f":"C126*D126","v":{"v":300,"d":"300.00 €"}}]
["CAP.2.2","DEPÓSITO ASKIZU S5",null,null,{"$f":"SUM(E128:E140)","v":{"v":5993.8,"d":"5,993.80 €"}}]
[null,"SWITCH SHDSL 2 PUERTOS\nETIC 2 PUERTOS + BYPASS XSLAN + BP2400 // Siemens Scalance equivalente",{"v":1020.8,"d":"1,020.80 €"},1,{"$f":"D128*C128","v":{"v":1020.8,"d":"1,020.80 €"}}]
[null,"DESCARGADOR DE SOBRETENSIONES \nLÍNEA EQUIPO VALVETRAB PHOENIX CONTACT con 4 puertos",{"v":198,"d":"198.00 €"},1,{"$f":"D129*C129","v":{"v":198,"d":"198.00 €"}}]
[null,"CPU ESTACIÓN REMOTA \nSIMATIC S7-1200 - 1214C 6ES7214-1AG40-0XB0 // SCHNEIDER TM251 MESE\n14 ED 24V DC; 10 SD 24 V DC; 2 EA incorporadas Siemens. \nTarjetas TM3DI16, TMDQ16T, TM3AI8 en el caso Schneider.",{"v":470,"d":"470.00 €"},1,{"$f":"C130*D130","v":{"v":470,"d":"470.00 €"}}]
[null,"MÓDULO DE 16 E. DIGITALES \nSIMATIC S7-1200, SM1221 //6ES7221-1BH32-0XB0 TM3DI16 EN EL CASO DE SCHNEIDER",{"v":200,"d":"200.00 €"},1,{"$f":"C131*D131","v":{"v":200,"d":"200.00 €"}}]
[null,"MÓDULO DE 4 E.ANALÓGICAS\nSIMATIC S7-1200, SM 1231, 4 EA //6ES7231-4HF32-0XB0 // Schneider TM3AI8",{"v":250,"d":"250.00 €"},1,{"$f":"C132*D132","v":{"v":250,"d":"250.00 €"}}]
[null,"PANTALLA HMI LOCAL 4\" \nSiemens ETHERNET Y COLOR Basic Pantalla TFT // Schneider equivalente",{"v":315,"d":"315.00 €"},1,{"$f":"C133*D133","v":{"v":315,"d":"315.00 €"}}]
[null,"PUERTA RITTAL AE 1180 RAL7035 \nen sustitución de la existente.",{"v":290,"d":"290.00 €"},1,{"$f":"C134*D134","v":{"v":290,"d":"290.00 €"}}]
[null,"INSTALACIÓN Y CONEXIONADO\nIncluyendo cableado, borneros y pequeño material para su completo conexionado.",{"v":500,"d":"500.00 €"},1,{"$f":"C135*D135","v":{"v":500,"d":"500.00 €"}}]
[null,"INSTALACIÓN NUEVA PUERTA RITTAL\nSustitución de tapa marca Rittal existente por mismo modelo, incluyendo trabajo de troquelado y montaje de canaletas de la nueva puerta.",{"v":100,"d":"100.00 €"},1,{"$f":"C136*D136","v":{"v":100,"d":"100.00 €"}}]
[null,"PROGRAMACIÓN PLC Y PUESTA EN MARCHA\nConfiguración, parametrización y P.E.M. del PLC local, pruebas en taller y emplazamiento.",{"v":1450,"d":"1,450.00 €"},1,{"$f":"C137*D137","v":{"v":1450,"d":"1,450.00 €"}}]
[null,"PROGRAMACIÓN PANTALLA HMI\nConfiguración, parametrización pantalla HMI, pruebas en taller y emplazamiento.",{"v":500,"d":"500.00 €"},1,{"$f":"C138*D138","v":{"v":500,"d":"500.00 €"}}]
[null,"PROGRAMACIÓN COMUNICACIONES SWITCHES SHDSL\nConfiguración, parametrización y P.E.M de comunicaciones incluyendo pruebas en taller y emplazamiento, y borrado de anteriores comunicaciones.",{"v":400,"d":"400.00 €"},1,{"$f":"C139*D139","v":{"v":400,"d":"400.00 €"}}]
[null,"PROGRAMACIÓN SCADA\nModificación de la programación, pruebas y puesta en servicio de SCADA Intouch a consecuencia del nuevo hardware y del nuevo mapeado de comunicaciones. ",{"v":300,"d":"300.00 €"},1,{"$f":"C140*D140","v":{"v":300,"d":"300.00 €"}}]
["CAP.2.3","DERIVACIÓN BASAKARTE S5",null,null,{"$f":"SUM(E142:E149)","v":{"v":4538.8,"d":"4,538.80 €"}}]
[null,"SWITCH SHDSL 2 PUERTOS\nETIC 2 PUERTOS + BYPASS XSLAN + BP2400 // Siemens Scalance equivalente",{"v":1020.8,"d":"1,020.80 €"},1,{"$f":"D142*C142","v":{"v":1020.8,"d":"1,020.80 €"}}]
[null,"DESCARGADOR DE SOBRETENSIONES \nLÍNEA EQUIPO VALVETRAB PHOENIX CONTACT con 4 puertos",{"v":198,"d":"198.00 €"},1,{"$f":"D143*C143","v":{"v":198,"d":"198.00 €"}}]
[null,"CPU ESTACIÓN REMOTA \nSIMATIC S7-1200 - 1214C 6ES7214-1AG40-0XB0 // SCHNEIDER TM251 MESE\n14 ED 24V DC; 10 SD 24 V DC; 2 EA incorporadas Siemens. \nTarjetas TM3DI16, TMDQ16T, TM3AI8 en el caso Schneider.",{"v":470,"d":"470.00 €"},1,{"$f":"C144*D144","v":{"v":470,"d":"470.00 €"}}]
[null,"MÓDULO DE 1 S. ANALÓGICA \nSIMATIC S7-1200, SM1221 //EQUIVALENTE SCHNEIDER",{"v":200,"d":"200.00 €"},1,{"$f":"C145*D145","v":{"v":200,"d":"200.00 €"}}]
[null,"INSTALACIÓN Y CONEXIONADO\nIncluyendo cableado, borneros y pequeño material para su completo conexionado.",{"v":500,"d":"500.00 €"},1,{"$f":"C146*D146","v":{"v":500,"d":"500.00 €"}}]
[null,"PROGRAMACIÓN PLC Y PUESTA EN MARCHA\nConfiguración, parametrización y P.E.M. del PLC local, pruebas en taller y emplazamiento.",{"v":1450,"d":"1,450.00 €"},1,{"$f":"C147*D147","v":{"v":1450,"d":"1,450.00 €"}}]
[null,"PROGRAMACIÓN COMUNICACIONES SWITCHES SHDSL\nConfiguración, parametrización y P.E.M de comunicaciones incluyendo pruebas en taller y emplazamiento, y borrado de anteriores comunicaciones.",{"v":400,"d":"400.00 €"},1,{"$f":"C148*D148","v":{"v":400,"d":"400.00 €"}}]
[null,"PROGRAMACIÓN SCADA\nModificación de la programación, pruebas y puesta en servicio de SCADA Intouch a consecuencia del nuevo hardware y del nuevo mapeado de comunicaciones. ",{"v":300,"d":"300.00 €"},1,{"$f":"C149*D149","v":{"v":300,"d":"300.00 €"}}]
["CAP.2.4","DEPÓSITO ZUMAIA S5",null,null,{"$f":"SUM(E151:E164)","v":{"v":6373.8,"d":"6,373.80 €"}}]
[null,"SWITCH SHDSL 2 PUERTOS\nETIC 2 PUERTOS + BYPASS XSLAN + BP2400 // Siemens Scalance equivalente.",{"v":1020.8,"d":"1,020.80 €"},1,{"$f":"D151*C151","v":{"v":1020.8,"d":"1,020.80 €"}}]
[null,"DESCARGADOR DE SOBRETENSIONES \nLÍNEA EQUIPO VALVETRAB PHOENIX CONTACT con 4 puertos",{"v":198,"d":"198.00 €"},1,{"$f":"D152*C152","v":{"v":198,"d":"198.00 €"}}]
[null,"CPU ESTACIÓN REMOTA \nSIMATIC S7-1200 - 1214C 6ES7214-1AG40-0XB0 // SCHNEIDER TM251 MESE.\n14 ED 24V DC; 10 SD 24 V DC; 2 EA incorporadas Siemens. \nTarjetas TM3DI16, TMDQ16T, TM3AI8 en el caso Schneider.",{"v":470,"d":"470.00 €"},1,{"$f":"C153*D153","v":{"v":470,"d":"470.00 €"}}]
[null,"MÓDULO DE 16 E. DIGITALES \nSIMATIC S7-1200, SM1221 //6ES7221-1BH32-0XB0 TM3DI16 EN EL CASO DE SCHNEIDER",{"v":200,"d":"200.00 €"},1,{"$f":"C154*D154","v":{"v":200,"d":"200.00 €"}}]
[null,"MÓDULO DE 16 S. DIGITALES \nSIMATIC S7-1200, SM1221 //6ES7221-1BH32-0XB0 (O TM3DI16 EN EL CASO DE SCHNEIDER)",{"v":200,"d":"200.00 €"},1,{"$f":"C155*D155","v":{"v":200,"d":"200.00 €"}}]
[null,"MÓDULO DE 4 E.ANALÓGICAS\nSIMATIC S7-1200, SM 1231, 4 EA //6ES7231-4HF32-0XB0 // Schneider TM3AI8",{"v":250,"d":"250.00 €"},1,{"$f":"C156*D156","v":{"v":250,"d":"250.00 €"}}]
[null,"PANTALLA HMI LOCAL 4\" \nSiemens ETHERNET Y COLOR Basic Pantalla TFT // Schneider equivalente",{"v":315,"d":"315.00 €"},1,{"$f":"C157*D157","v":{"v":315,"d":"315.00 €"}}]
[null,"PUERTA RITTAL AE 1073 RAL7035 \nen sustitución de la existente.",{"v":270,"d":"270.00 €"},1,{"$f":"C158*D158","v":{"v":270,"d":"270.00 €"}}]
[null,"INSTALACIÓN Y CONEXIONADO\nIncluyendo cableado, borneros y pequeño material para su completo conexionado.",{"v":700,"d":"700.00 €"},1,{"$f":"C159*D159","v":{"v":700,"d":"700.00 €"}}]
[null,"INSTALACIÓN NUEVA PUERTA RITTAL\nSustitución de tapa marca Rittal existente por mismo modelo, incluyendo trabajo de troquelado y montaje de canaletas de la nueva puerta.",{"v":100,"d":"100.00 €"},1,{"$f":"C160*D160","v":{"v":100,"d":"100.00 €"}}]
[null,"PROGRAMACIÓN PLC Y PUESTA EN MARCHA\nConfiguración, parametrización y P.E.M. del PLC local, pruebas en taller y emplazamiento.",{"v":1450,"d":"1,450.00 €"},1,{"$f":"C161*D161","v":{"v":1450,"d":"1,450.00 €"}}]
[null,"PROGRAMACIÓN PANTALLA HMI\nConfiguración, parametrización pantalla HMI, pruebas en taller y emplazamiento.",{"v":500,"d":"500.00 €"},1,{"$f":"C162*D162","v":{"v":500,"d":"500.00 €"}}]
[null,"PROGRAMACIÓN COMUNICACIONES SWITCHES SHDSL\nConfiguración, parametrización y P.E.M de comunicaciones incluyendo pruebas en taller y emplazamiento, y borrado de anteriores comunicaciones.",{"v":400,"d":"400.00 €"},1,{"$f":"C163*D163","v":{"v":400,"d":"400.00 €"}}]
[null,"PROGRAMACIÓN SCADA\nModificación de la programación, pruebas y puesta en servicio de SCADA Intouch a consecuencia del nuevo hardware y del nuevo mapeado de comunicaciones. ",{"v":300,"d":"300.00 €"},1,{"$f":"C164*D164","v":{"v":300,"d":"300.00 €"}}]
["CAP.2.5","DEPÓSITO ARTADI S7",null,null,{"$f":"SUM(E166:E173)","v":{"v":4653.8,"d":"4,653.80 €"}}]
[null,"SWITCH SHDSL 2 PUERTOS\nETIC 2 PUERTOS + BYPASS XSLAN + BP2400 // Siemens Scalance equivalente",{"v":1020.8,"d":"1,020.80 €"},1,{"$f":"D166*C166","v":{"v":1020.8,"d":"1,020.80 €"}}]
[null,"DESCARGADOR DE SOBRETENSIONES \nLÍNEA EQUIPO VALVETRAB PHOENIX CONTACT con 4 puertos",{"v":198,"d":"198.00 €"},1,{"$f":"D167*C167","v":{"v":198,"d":"198.00 €"}}]
[null,"CP343-1 LEAN\nMódulo Ethernet SIEMENS 6GK7343-1CX10-0XE0 en sustitución de tarjeta TIM.",{"v":770,"d":"770.00 €"},1,{"$f":"C168*D168","v":{"v":770,"d":"770.00 €"}}]
[null,"CONECTOR DE BUS\nSIEMENS 6ES7390-0AA00-0AA0 S7 // equivalente Schneider",{"v":15,"d":"15.00 €"},1,{"$f":"C169*D169","v":{"v":15,"d":"15.00 €"}}]
[null,"INSTALACIÓN Y CONEXIONADO\nIncluyendo cableado, borneros y pequeño material para su completo conexionado.",{"v":500,"d":"500.00 €"},1,{"$f":"C170*D170","v":{"v":500,"d":"500.00 €"}}]
[null,"PROGRAMACIÓN PLC Y PUESTA EN MARCHA\nConfiguración, parametrización y P.E.M. del PLC local, pruebas en taller y emplazamiento.",{"v":1450,"d":"1,450.00 €"},1,{"$f":"C171*D171","v":{"v":1450,"d":"1,450.00 €"}}]
[null,"PROGRAMACIÓN COMUNICACIONES SWITCHES SHDSL\nConfiguración, parametrización y P.E.M de comunicaciones incluyendo pruebas en taller y emplazamiento, y borrado de anteriores comunicaciones.",{"v":400,"d":"400.00 €"},1,{"$f":"C172*D172","v":{"v":400,"d":"400.00 €"}}]
[null,"PROGRAMACIÓN SCADA\nModificación de la programación, pruebas y puesta en servicio de SCADA Intouch a consecuencia del nuevo hardware y del nuevo mapeado de comunicaciones. ",{"v":300,"d":"300.00 €"},1,{"$f":"C173*D173","v":{"v":300,"d":"300.00 €"}}]
["CAP.2.6","DERIVACIÓN OIKIA S5 y S7",null,null,{"$f":"SUM(E175:E185)","v":{"v":7028.39,"d":"7,028.39 €"}}]
[null,"SWITCH SHDSL 1 PUERTO\nETIC 1 PUERTO XSLAN + 1400 /Siemenes Scalance equivalente",{"v":742.5,"d":"742.50 €"},1,{"$f":"D175*C175","v":{"v":742.5,"d":"742.50 €"}}]
[null,"DESCARGADOR DE SOBRETENSIONES \nLÍNEA EQUIPO VALVETRAB PHOENIX CONTACT con 4 puertos",{"v":198,"d":"198.00 €"},2,{"$f":"D176*C176","v":{"v":396,"d":"396.00 €"}}]
[null,"SWITCH SHDSL 2 PUERTOS\nETIC 2 PUERTOS + BYPASS XSLAN + BP2400 // Siemens Scalance equivalente",{"v":1020.8,"d":"1,020.80 €"},1,{"$f":"D177*C177","v":{"v":1020.8,"d":"1,020.80 €"}}]
[null,"ROUTER VPN 4G\nETIC IPL-C-100.LE // Siemens Scalance equivalente  Inc. antena, kit montaje y cableado 310.",{"v":599.09,"d":"599.09 €"},1,{"$f":"D178*C178","v":{"v":599.09,"d":"599.09 €"}}]
[null,"CPU ESTACIÓN REMOTA \nSIMATIC S7-1200 - 1214C 6ES7214-1AG40-0XB0 // SCHNEIDER TM251 MESE\n14 ED 24V DC; 10 SD 24 V DC; 2 EA incorporadas Siemens. \nTarjetas TM3DI16, TMDQ16T, TM3AI8 en el caso Schneider.",{"v":470,"d":"470.00 €"},1,{"$f":"C179*D179","v":{"v":470,"d":"470.00 €"}}]
[null,"MÓDULO DE 4 E.ANALÓGICAS\nSIMATIC S7-1200, SM 1231, 4 EA //6ES7231-4HF32-0XB0 // Schneider TM3AI8",{"v":250,"d":"250.00 €"},1,{"$f":"C180*D180","v":{"v":250,"d":"250.00 €"}}]
[null,"INSTALACIÓN Y CONEXIONADO\nIncluyendo cableado, borneros y pequeño material para su completo conexionado.",{"v":500,"d":"500.00 €"},1,{"$f":"C181*D181","v":{"v":500,"d":"500.00 €"}}]
[null,"PROGRAMACIÓN PLC Y PUESTA EN MARCHA\nConfiguración, parametrización y P.E.M. del PLC local, pruebas en taller y emplazamiento.",{"v":1450,"d":"1,450.00 €"},1,{"$f":"C182*D182","v":{"v":1450,"d":"1,450.00 €"}}]
[null,"PROGRAMACIÓN PANTALLA HMI\nConfiguración, parametrización pantalla HMI, pruebas en taller y emplazamiento.",{"v":500,"d":"500.00 €"},1,{"$f":"C183*D183","v":{"v":500,"d":"500.00 €"}}]
[null,"PROGRAMACIÓN COMUNICACIONES SWITCHES SHDSL\nConfiguración, parametrización y P.E.M de comunicaciones incluyendo pruebas en taller y emplazamiento, y borrado de anteriores comunicaciones.",{"v":400,"d":"400.00 €"},1,{"$f":"C184*D184","v":{"v":400,"d":"400.00 €"}}]
[null,"PROGRAMACIÓN SCADA\nModificación de la programación, pruebas y puesta en servicio de SCADA Intouch a consecuencia del nuevo hardware y del nuevo mapeado de comunicaciones. ",{"v":700,"d":"700.00 €"},1,{"$f":"C185*D185","v":{"v":700,"d":"700.00 €"}}]
["CAP.2.7","BOMBEO ELKANO",null,null,{"$f":"SUM(E187:E198)","v":{"v":7588.8,"d":"7,588.80 €"}}]
[null,"SWITCH SHDSL 2 PUERTOS\nETIC 2 PUERTOS + BYPASS XSLAN + BP2400 // Siemens Scalance equivalente",{"v":1020.8,"d":"1,020.80 €"},1,{"$f":"C187*D187","v":{"v":1020.8,"d":"1,020.80 €"}}]
[null,"DESCARGADOR DE SOBRETENSIONES \nLÍNEA EQUIPO VALVETRAB PHOENIX CONTACT con 4 puertos",{"v":198,"d":"198.00 €"},1,{"$f":"C188*D188","v":{"v":198,"d":"198.00 €"}}]
[null,"CPU ESTACIÓN REMOTA \nSIMATIC S7-1200 - 1214C 6ES7214-1AG40-0XB0 // SCHNEIDER TM251 MESE\n14 ED 24V DC; 10 SD 24 V DC; 2 EA incorporadas Siemens. \nTarjetas TM3DI16, TMDQ16T, TM3AI8 en el caso Schneider.",{"v":470,"d":"470.00 €"},1,{"$f":"C189*D189","v":{"v":470,"d":"470.00 €"}}]
[null,"MÓDULO DE 4 E.ANALÓGICAS\nSIMATIC S7-1200, SM 1231, 4 EA //6ES7231-4HF32-0XB0 // Schneider TM3AI8",{"v":250,"d":"250.00 €"},1,{"$f":"C190*D190","v":{"v":250,"d":"250.00 €"}}]
[null,"SIMATIC HMI LOCAL 7\" \nSiemens ETHERNET Y COLOR Basic Pantalla TFT Siemens // EQUIVALENTE SCHNEIDER",{"v":650,"d":"650.00 €"},1,{"$f":"C191*D191","v":{"v":650,"d":"650.00 €"}}]
[null,"FUENTE ALIMENTACIÓN CPU REMOTAS \nSITOP PSU6200 24 V/10 A // 6EP3334-7SB00-3AX0 \nABL8RPS24100 EN EL CASO DE SCHNEIDER",{"v":200,"d":"200.00 €"},1,{"$f":"C192*D192","v":{"v":200,"d":"200.00 €"}}]
[null,"MANO DE OBRA DE MODIFICACIÓN DE CUADRO\nIncluyendo cableado, borneros, interruptores automáticos, distribuidores 24V y pequeño material para su completo conexionado.",{"v":500,"d":"500.00 €"},1,{"$f":"C193*D193","v":{"v":500,"d":"500.00 €"}}]
[null,"INSTALACIÓN Y CONEXIONADO\nIncluyendo cableado, borneros y pequeño material para su completo conexionado.",{"v":500,"d":"500.00 €"},1,{"$f":"C194*D194","v":{"v":500,"d":"500.00 €"}}]
[null,"PROGRAMACIÓN PLC Y PUESTA EN MARCHA\nConfiguración, parametrización y P.E.M. del PLC local, pruebas en taller y emplazamiento.",{"v":1450,"d":"1,450.00 €"},1,{"$f":"C195*D195","v":{"v":1450,"d":"1,450.00 €"}}]
[null,"PROGRAMACIÓN PANTALLA HMI\nConfiguración, parametrización pantalla HMI, pruebas en taller y emplazamiento.",{"v":500,"d":"500.00 €"},1,{"$f":"C196*D196","v":{"v":500,"d":"500.00 €"}}]
[null,"PROGRAMACIÓN COMUNICACIONES SWITCHES SHDSL\nConfiguración, parametrización y P.E.M de comunicaciones incluyendo pruebas en taller y emplazamiento, y borrado de anteriores comunicaciones.",{"v":400,"d":"400.00 €"},1,{"$f":"C197*D197","v":{"v":400,"d":"400.00 €"}}]
[null,"PROGRAMACIÓN SCADA\nProgramación de nuevas variables, alarmas, pantalla de control en SCADA.",{"v":1450,"d":"1,450.00 €"},1,{"$f":"C198*D198","v":{"v":1450,"d":"1,450.00 €"}}]
["CAP.2.8","DEPÓSITO ELKANO",null,null,{"$f":"SUM(E200:E211)","v":{"v":9878.8,"d":"9,878.80 €"}}]
[null,"SWITCH SHDSL 2 PUERTOS\nETIC 2 PUERTOS + BYPASS XSLAN + BP2400 // Siemens Scalance equivalente",{"v":1020.8,"d":"1,020.80 €"},1,{"$f":"D200*C200","v":{"v":1020.8,"d":"1,020.80 €"}}]
[null,"DESCARGADOR DE SOBRETENSIONES \nLÍNEA EQUIPO VALVETRAB PHOENIX CONTACT con 4 puertos",{"v":198,"d":"198.00 €"},1,{"$f":"D201*C201","v":{"v":198,"d":"198.00 €"}}]
[null,"CPU ESTACIÓN REMOTA \nSIMATIC S7-1200 - 1214C 6ES7214-1AG40-0XB0 // SCHNEIDER TM251 MESE\n14 ED 24V DC; 10 SD 24 V DC; 2 EA incorporadas Siemens. \nTarjetas TM3DI16, TMDQ16T, TM3AI8 en el caso Schneider.",{"v":470,"d":"470.00 €"},1,{"$f":"C202*D202","v":{"v":470,"d":"470.00 €"}}]
[null,"MÓDULO DE 4 E.ANALÓGICAS\nSIMATIC S7-1200, SM 1231, 4 EA //6ES7231-4HF32-0XB0 // Schneider TM3AI8",{"v":250,"d":"250.00 €"},1,{"$f":"C203*D203","v":{"v":250,"d":"250.00 €"}}]
[null,"FUENTE ALIMENTACIÓN CPU REMOTAS \nSITOP PSU6200 24 V/10 A // 6EP3334-7SB00-3AX0 ABL8RPS24100 EN CASO DE SCHNEIDER",{"v":200,"d":"200.00 €"},1,{"$f":"C204*D204","v":{"v":200,"d":"200.00 €"}}]
[null,"SAI 24Vdc\nSiemens SITOP UPS500S, 360W, 24DC, 1 Salida, montaje carril DIN//Equivalente Schneider",{"v":440,"d":"440.00 €"},1,{"$f":"C205*D205","v":{"v":440,"d":"440.00 €"}}]
[null,"ARMARIO ELÉCTRICO \nSchneider// RITTAL material PLA. \nDimensiones Alt1000xAn750xPr420 IP65, inc placa montaje, carril din, borneros…",{"v":1000,"d":"1,000.00 €"},1,{"$f":"C206*D206","v":{"v":1000,"d":"1,000.00 €"}}]
[null,"MANO DE OBRA DE MONTAJE DE CUADRO\nIncluyendo cableado, borneros interruptores automáticos, distribuidores 24V y pequeño material para su completo conexionado.",{"v":1500,"d":"1,500.00 €"},1,{"$f":"C207*D207","v":{"v":1500,"d":"1,500.00 €"}}]
[null,"INSTALACIÓN Y CONEXIONADO\nIncluyendo cableado, borneros y pequeño material para su completo conexionado",{"v":1500,"d":"1,500.00 €"},1,{"$f":"C208*D208","v":{"v":1500,"d":"1,500.00 €"}}]
[null,"PROGRAMACIÓN PLC Y PUESTA EN MARCHA\nConfiguración, parametrización y P.E.M. del PLC local, pruebas en taller y emplazamiento.",{"v":1450,"d":"1,450.00 €"},1,{"$f":"C209*D209","v":{"v":1450,"d":"1,450.00 €"}}]
[null,"PROGRAMACIÓN COMUNICACIONES SWITCHES SHDSL\nConfiguración, parametrización y P.E.M de comunicaciones incluyendo pruebas en taller y emplazamiento, y borrado de anteriores comunicaciones.",{"v":400,"d":"400.00 €"},1,{"$f":"C210*D210","v":{"v":400,"d":"400.00 €"}}]
[null,"PROGRAMACIÓN SCADA\nProgramación de nuevas variables, alarmas, pantalla de control en SCADA.",{"v":1450,"d":"1,450.00 €"},1,{"$f":"C211*D211","v":{"v":1450,"d":"1,450.00 €"}}]
["CAP.2.9","DERIVACIÓN VISTA-ALEGRE S5",null,null,{"$f":"SUM(E213:E220)","v":{"v":4538.8,"d":"4,538.80 €"}}]
[null,"SWITCH SHDSL 2 PUERTOS\nETIC 2 PUERTOS + BYPASS XSLAN + BP2400 // Siemens Scalance equivalente",{"v":1020.8,"d":"1,020.80 €"},1,{"$f":"D213*C213","v":{"v":1020.8,"d":"1,020.80 €"}}]
[null,"DESCARGADOR DE SOBRETENSIONES \nLÍNEA EQUIPO VALVETRAB PHOENIX CONTACT con 4 puertos",{"v":198,"d":"198.00 €"},1,{"$f":"D214*C214","v":{"v":198,"d":"198.00 €"}}]
[null,"CPU ESTACIÓN REMOTA \nSIMATIC S7-1200 - 1214C 6ES7214-1AG40-0XB0 // Schneider TM251 MESE\n14 ED 24V DC; 10 SD 24 V DC; 2 EA incorporadas Siemens. \nTarjetas TM3DI16, TMDQ16T, TM3AI8 en el caso Schneider.",{"v":470,"d":"470.00 €"},1,{"$f":"C215*D215","v":{"v":470,"d":"470.00 €"}}]
[null,"MÓDULO DE 1 S. ANALÓGICA \nSIMATIC S7-1200, SM1221 //EQUIVALENTE SCHNEIDER",{"v":200,"d":"200.00 €"},1,{"$f":"C216*D216","v":{"v":200,"d":"200.00 €"}}]
[null,"INSTALACIÓN Y CONEXIONADO\nIncluyendo cableado, borneros y pequeño material para su completo conexionado.",{"v":500,"d":"500.00 €"},1,{"$f":"C217*D217","v":{"v":500,"d":"500.00 €"}}]
[null,"PROGRAMACIÓN PLC Y PUESTA EN MARCHA\nConfiguración, parametrización y P.E.M. del PLC local, pruebas en taller y emplazamiento.",{"v":1450,"d":"1,450.00 €"},1,{"$f":"C218*D218","v":{"v":1450,"d":"1,450.00 €"}}]
[null,"PROGRAMACIÓN COMUNICACIONES SWITCHES SHDSL\nConfiguración, parametrización y P.E.M de comunicaciones incluyendo pruebas en taller y emplazamiento, y borrado de anteriores comunicaciones.",{"v":400,"d":"400.00 €"},1,{"$f":"C219*D219","v":{"v":400,"d":"400.00 €"}}]
[null,"PROGRAMACIÓN SCADA\nModificación de la programación, pruebas y puesta en servicio de SCADA Intouch a consecuencia del nuevo hardware y del nuevo mapeado de comunicaciones. ",{"v":300,"d":"300.00 €"},1,{"$f":"C220*D220","v":{"v":300,"d":"300.00 €"}}]
["CAP.2.10","DEPÓSITO VISTA-ALEGRE S7",null,null,{"$f":"SUM(E222:E228)","v":{"v":3084.09,"d":"3,084.09 €"}}]
[null,"ROUTER VPN 4G\nETIC IPL-C-100.LE // Siemens Scalance equivalente  Inc. antena, kit montaje y cableado 310.",{"v":599.09,"d":"599.09 €"},1,{"$f":"C222*D222","v":{"v":599.09,"d":"599.09 €"}}]
[null,"CP343-1 LEAN\nMódulo Ethernet SIEMENS 6GK7343-1CX10-0XE0  en sustitución de tarjeta TIM.",{"v":770,"d":"770.00 €"},1,{"$f":"C223*D223","v":{"v":770,"d":"770.00 €"}}]
[null,"CONECTOR DE BUS\nSIEMENS 6ES7390-0AA00-0AA0 S7 // equivalente Schneider",{"v":15,"d":"15.00 €"},1,{"$f":"C224*D224","v":{"v":15,"d":"15.00 €"}}]
[null,"INSTALACIÓN Y CONEXIONADO\nIncluyendo cableado, borneros y pequeño material para su completo conexionado.",{"v":500,"d":"500.00 €"},1,{"$f":"C225*D225","v":{"v":500,"d":"500.00 €"}}]
[null,"PROGRAMACIÓN PLC Y PUESTA EN MARCHA\nConfiguración, parametrización y P.E.M. del PLC local, pruebas en taller y emplazamiento.",{"v":500,"d":"500.00 €"},1,{"$f":"C226*D226","v":{"v":500,"d":"500.00 €"}}]
[null,"PROGRAMACIÓN COMUNICACIONES SWITCHES SHDSL\nConfiguración, parametrización y P.E.M de comunicaciones incluyendo pruebas en taller y emplazamiento, y borrado de anteriores comunicaciones.",{"v":400,"d":"400.00 €"},1,{"$f":"C227*D227","v":{"v":400,"d":"400.00 €"}}]
[null,"PROGRAMACIÓN SCADA\nModificación de la programación, pruebas y puesta en servicio de SCADA Intouch a consecuencia del nuevo hardware y del nuevo mapeado de comunicaciones. ",{"v":300,"d":"300.00 €"},1,{"$f":"C228*D228","v":{"v":300,"d":"300.00 €"}}]
["CAP.2.11","DEPÓSITO UNSAIN S5",null,null,{"$f":"SUM(E230:E243)","v":{"v":6193.8,"d":"6,193.80 €"}}]
[null,"SWITCH SHDSL 2 PUERTOS\nETIC 2 PUERTOS + BYPASS XSLAN + BP2400 // Siemens Scalance equivalente",{"v":1020.8,"d":"1,020.80 €"},1,{"$f":"D230*C230","v":{"v":1020.8,"d":"1,020.80 €"}}]
[null,"DESCARGADOR DE SOBRETENSIONES \nLÍNEA EQUIPO VALVETRAB PHOENIX CONTACT con 4 puertos",{"v":198,"d":"198.00 €"},1,{"$f":"D231*C231","v":{"v":198,"d":"198.00 €"}}]
[null,"CPU ESTACIÓN REMOTA \nSIMATIC S7-1200 - 1214C 6ES7214-1AG40-0XB0 // SCHNEIDER TM251 MESE\n14 ED 24V DC; 10 SD 24 V DC; 2 EA incorporadas Siemens. \nTarjetas TM3DI16, TMDQ16T, TM3AI8 en el caso Schneider.",{"v":470,"d":"470.00 €"},1,{"$f":"C232*D232","v":{"v":470,"d":"470.00 €"}}]
[null,"MÓDULO DE 16 E. DIGITALES \nSIMATIC S7-1200, SM1221 //6ES7221-1BH32-0XB0TM3DI16 EN EL CASO DE SCHNEIDER",{"v":200,"d":"200.00 €"},1,{"$f":"C233*D233","v":{"v":200,"d":"200.00 €"}}]
[null,"MÓDULO DE 16 S. DIGITALES \nSIMATIC S7-1200, SM1221 //6ES7221-1BH32-0XB0 (O TM3DI16 EN EL CASO DE SCHNEIDER)",{"v":200,"d":"200.00 €"},1,{"$f":"C234*D234","v":{"v":200,"d":"200.00 €"}}]
[null,"MÓDULO DE 4 E.ANALÓGICAS\nSIMATIC S7-1200, SM 1231, 4 EA //6ES7231-4HF32-0XB0 // Schneider TM3AI8",{"v":250,"d":"250.00 €"},1,{"$f":"C235*D235","v":{"v":250,"d":"250.00 €"}}]
[null,"PANTALLA HMI LOCAL 4\" \nSiemens ETHERNET Y COLOR Basic Pantalla TFT // Schneider equivalente",{"v":315,"d":"315.00 €"},1,{"$f":"C236*D236","v":{"v":315,"d":"315.00 €"}}]
[null,"PUERTA RITTAL AE 1180 RAL7035 \nen sustitución de la existente.",{"v":290,"d":"290.00 €"},1,{"$f":"C237*D237","v":{"v":290,"d":"290.00 €"}}]
[null,"INSTALACIÓN Y CONEXIONADO\nIncluyendo cableado, borneros y pequeño material para su completo conexionado.",{"v":500,"d":"500.00 €"},1,{"$f":"C238*D238","v":{"v":500,"d":"500.00 €"}}]
[null,"INSTALACIÓN NUEVA PUERTA RITTAL\nSustitución de tapa marca Rittal existente por mismo modelo, incluyendo trabajo de troquelado y montaje de canaletas de la nueva puerta.",{"v":100,"d":"100.00 €"},1,{"$f":"C239*D239","v":{"v":100,"d":"100.00 €"}}]
[null,"PROGRAMACIÓN PLC Y PUESTA EN MARCHA\nConfiguración, parametrización y P.E.M. del PLC local, pruebas en taller y emplazamiento.",{"v":1450,"d":"1,450.00 €"},1,{"$f":"C240*D240","v":{"v":1450,"d":"1,450.00 €"}}]
[null,"PROGRAMACIÓN PANTALLA HMI\nConfiguración, parametrización pantalla HMI, pruebas en taller y emplazamiento.",{"v":500,"d":"500.00 €"},1,{"$f":"C241*D241","v":{"v":500,"d":"500.00 €"}}]
[null,"PROGRAMACIÓN COMUNICACIONES SWITCHES SHDSL\nConfiguración, parametrización y P.E.M de comunicaciones incluyendo pruebas en taller y emplazamiento, y borrado de anteriores comunicaciones.",{"v":400,"d":"400.00 €"},1,{"$f":"C242*D242","v":{"v":400,"d":"400.00 €"}}]
[null,"PROGRAMACIÓN SCADA\nModificación de la programación, pruebas y puesta en servicio de SCADA Intouch a consecuencia del nuevo hardware y del nuevo mapeado de comunicaciones. ",{"v":300,"d":"300.00 €"},1,{"$f":"C243*D243","v":{"v":300,"d":"300.00 €"}}]
["CAP.2.13","DERIVACIÓN AÑURBE S5",null,null,{"$f":"SUM(E245:E252)","v":{"v":4538.8,"d":"4,538.80 €"}}]
[null,"SWITCH SHDSL 2 PUERTOS\nETIC 2 PUERTOS + BYPASS XSLAN + BP2400 // Siemens Scalance equivalente",{"v":1020.8,"d":"1,020.80 €"},1,{"$f":"D245*C245","v":{"v":1020.8,"d":"1,020.80 €"}}]
[null,"DESCARGADOR DE SOBRETENSIONES \nLÍNEA EQUIPO VALVETRAB PHOENIX CONTACT con 4 puertos",{"v":198,"d":"198.00 €"},1,{"$f":"D246*C246","v":{"v":198,"d":"198.00 €"}}]
[null,"CPU ESTACIÓN REMOTA \nSIMATIC S7-1200 - 1214C 6ES7214-1AG40-0XB0 // SCHNEIDER TM251 MESE\n14 ED 24V DC; 10 SD 24 V DC; 2 EA incorporadas Siemens. \nTarjetas TM3DI16, TMDQ16T, TM3AI8 en el caso Schneider.",{"v":470,"d":"470.00 €"},1,{"$f":"C247*D247","v":{"v":470,"d":"470.00 €"}}]
[null,"MÓDULO DE 1 S. ANALÓGICA \nSIMATIC S7-1200, SM1221 //EQUIVALENTE SCHNEIDER",{"v":200,"d":"200.00 €"},1,{"$f":"C248*D248","v":{"v":200,"d":"200.00 €"}}]
[null,"INSTALACIÓN Y CONEXIONADO\nIncluyendo cableado, borneros y pequeño material para su completo conexionado.",{"v":500,"d":"500.00 €"},1,{"$f":"C249*D249","v":{"v":500,"d":"500.00 €"}}]
[null,"PROGRAMACIÓN PLC Y PUESTA EN MARCHA\nConfiguración, parametrización y P.E.M. del PLC local, pruebas en taller y emplazamiento.",{"v":1450,"d":"1,450.00 €"},1,{"$f":"C250*D250","v":{"v":1450,"d":"1,450.00 €"}}]
[null,"PROGRAMACIÓN COMUNICACIONES SWITCHES SHDSL\nConfiguración, parametrización y P.E.M de comunicaciones incluyendo pruebas en taller y emplazamiento, y borrado de anteriores comunicaciones.",{"v":400,"d":"400.00 €"},1,{"$f":"C251*D251","v":{"v":400,"d":"400.00 €"}}]
[null,"PROGRAMACIÓN SCADA\nModificación de la programación, pruebas y puesta en servicio de SCADA Intouch a consecuencia del nuevo hardware y del nuevo mapeado de comunicaciones. ",{"v":300,"d":"300.00 €"},1,{"$f":"C252*D252","v":{"v":300,"d":"300.00 €"}}]
["CAP.2.14","DEPÓSITO AÑURBE S5",null,null,{"$f":"SUM(E254:E267)","v":{"v":6193.8,"d":"6,193.80 €"}}]
[null,"SWITCH SHDSL 2 PUERTOS\nETIC 2 PUERTOS + BYPASS XSLAN + BP2400 // Siemens Scalance equivalente",{"v":1020.8,"d":"1,020.80 €"},1,{"$f":"D254*C254","v":{"v":1020.8,"d":"1,020.80 €"}}]
[null,"DESCARGADOR DE SOBRETENSIONES \nLÍNEA EQUIPO VALVETRAB PHOENIX CONTACT con 4 puertos",{"v":198,"d":"198.00 €"},1,{"$f":"D255*C255","v":{"v":198,"d":"198.00 €"}}]
[null,"CPU ESTACIÓN REMOTA \nSIMATIC S7-1200 - 1214C 6ES7214-1AG40-0XB0 // SCHNEIDER TM251 MESE\n14 ED 24V DC; 10 SD 24 V DC; 2 EA incorporadas Siemens. \nTarjetas TM3DI16, TMDQ16T, TM3AI8 en el caso Schneider.",{"v":470,"d":"470.00 €"},1,{"$f":"C256*D256","v":{"v":470,"d":"470.00 €"}}]
[null,"MÓDULO DE 16 E. DIGITALES \nSIMATIC S7-1200, SM1221 //6ES7221-1BH32-0XB0 TM3DI16 EN EL CASO DE SCHNEIDER",{"v":200,"d":"200.00 €"},1,{"$f":"C257*D257","v":{"v":200,"d":"200.00 €"}}]
[null,"MÓDULO DE 16 S. DIGITALES \nSIMATIC S7-1200, SM1221 //6ES7221-1BH32-0XB0 (O TM3DI16 EN EL CASO DE SCHNEIDER)",{"v":200,"d":"200.00 €"},1,{"$f":"C258*D258","v":{"v":200,"d":"200.00 €"}}]
[null,"MÓDULO DE 4 E.ANALÓGICAS\nSIMATIC S7-1200, SM 1231, 4 EA //6ES7231-4HF32-0XB0 // Schneider TM3AI8",{"v":250,"d":"250.00 €"},1,{"$f":"C259*D259","v":{"v":250,"d":"250.00 €"}}]
[null,"PANTALLA HMI LOCAL 4\" \nSiemens ETHERNET Y COLOR Basic Pantalla TFT // Schneider equivalente",{"v":315,"d":"315.00 €"},1,{"$f":"C260*D260","v":{"v":315,"d":"315.00 €"}}]
[null,"PUERTA RITTAL AE 1180 RAL7035 \nen sustitución de la existente.",{"v":290,"d":"290.00 €"},1,{"$f":"C261*D261","v":{"v":290,"d":"290.00 €"}}]
[null,"INSTALACIÓN Y CONEXIONADO\nIncluyendo cableado, borneros y pequeño material para su completo conexionado.",{"v":500,"d":"500.00 €"},1,{"$f":"C262*D262","v":{"v":500,"d":"500.00 €"}}]
[null,"INSTALACIÓN NUEVA PUERTA RITTAL\nSustitución de tapa marca Rittal existente por mismo modelo, incluyendo trabajo de troquelado y montaje de canaletas de la nueva puerta.",{"v":100,"d":"100.00 €"},1,{"$f":"C263*D263","v":{"v":100,"d":"100.00 €"}}]
[null,"PROGRAMACIÓN PLC Y PUESTA EN MARCHA\nConfiguración, parametrización y P.E.M. del PLC local, pruebas en taller y emplazamiento.",{"v":1450,"d":"1,450.00 €"},1,{"$f":"C264*D264","v":{"v":1450,"d":"1,450.00 €"}}]
[null,"PROGRAMACIÓN PANTALLA HMI\nConfiguración, parametrización pantalla HMI, pruebas en taller y emplazamiento.",{"v":500,"d":"500.00 €"},1,{"$f":"C265*D265","v":{"v":500,"d":"500.00 €"}}]
[null,"PROGRAMACIÓN COMUNICACIONES SWITCHES SHDSL\nConfiguración, parametrización y P.E.M de comunicaciones incluyendo pruebas en taller y emplazamiento, y borrado de anteriores comunicaciones.",{"v":400,"d":"400.00 €"},1,{"$f":"C266*D266","v":{"v":400,"d":"400.00 €"}}]
[null,"PROGRAMACIÓN SCADA\nModificación de la programación, pruebas y puesta en servicio de SCADA Intouch a consecuencia del nuevo hardware y del nuevo mapeado de comunicaciones. ",{"v":300,"d":"300.00 €"},1,{"$f":"C267*D267","v":{"v":300,"d":"300.00 €"}}]
["CAP.2.15","BOMBEO ORIO S5",null,null,{"$f":"SUM(E269:E283)","v":{"v":7327.889999999999,"d":"7,327.89 €"}}]
[null,"SWITCH SHDSL 2 PUERTOS\nETIC 2 PUERTOS + BYPASS XSLAN + BP2400 // Siemens Scalance equivalente",{"v":1020.8,"d":"1,020.80 €"},1,{"$f":"D269*C269","v":{"v":1020.8,"d":"1,020.80 €"}}]
[null,"DESCARGADOR DE SOBRETENSIONES \nLÍNEA EQUIPO VALVETRAB PHOENIX CONTACT con 4 puertos",{"v":198,"d":"198.00 €"},1,{"$f":"D270*C270","v":{"v":198,"d":"198.00 €"}}]
[null,"ROUTER VPN 4G\nETIC IPL-C-100.LE // Siemens Scalance equivalente  Inc. antena, kit montaje y cableado 310.",{"v":599.09,"d":"599.09 €"},1,{"$f":"D271*C271","v":{"v":599.09,"d":"599.09 €"}}]
[null,"CPU ESTACIÓN REMOTA \nSIMATIC S7-1200 - 1214C 6ES7214-1AG40-0XB0 // SCHNEIDER TM251 MESE\n14 ED 24V DC; 10 SD 24 V DC; 2 EA incorporadas Siemens. \nTarjetas TM3DI16, TMDQ16T, TM3AI8 en el caso Schneider.",{"v":470,"d":"470.00 €"},1,{"$f":"C272*D272","v":{"v":470,"d":"470.00 €"}}]
[null,"MÓDULO DE 16 E. DIGITALES \nSIMATIC S7-1200, SM1221 //6ES7221-1BH32-0XB0 TM3DI16 EN EL CASO DE SCHNEIDER",{"v":200,"d":"200.00 €"},2,{"$f":"C273*D273","v":{"v":400,"d":"400.00 €"}}]
[null,"MÓDULO DE 16 S. DIGITALES \nSIMATIC S7-1200, SM1221 //6ES7221-1BH32-0XB0 (O TM3DI16 EN EL CASO DE SCHNEIDER)",{"v":200,"d":"200.00 €"},1,{"$f":"C274*D274","v":{"v":200,"d":"200.00 €"}}]
[null,"MÓDULO DE 4 E.ANALÓGICAS\nSIMATIC S7-1200, SM 1231, 4 EA //6ES7231-4HF32-0XB0 // Schneider TM3AI8",{"v":250,"d":"250.00 €"},1,{"$f":"C275*D275","v":{"v":250,"d":"250.00 €"}}]
[null,"SIMATIC HMI LOCAL 7\" \nSiemens ETHERNET Y COLOR Basic Pantalla TFT Siemens // EQUIVALENTE SCHNEIDER",{"v":650,"d":"650.00 €"},1,{"$f":"C276*D276","v":{"v":650,"d":"650.00 €"}}]
[null,"PUERTA RITTAL AE 1180 RAL7035 \nen sustitución de la existente.",{"v":290,"d":"290.00 €"},1,{"$f":"C277*D277","v":{"v":290,"d":"290.00 €"}}]
[null,"INSTALACIÓN Y CONEXIONADO\nIncluyendo cableado, borneros y pequeño material para su completo conexionado.",{"v":500,"d":"500.00 €"},1,{"$f":"C278*D278","v":{"v":500,"d":"500.00 €"}}]
[null,"INSTALACIÓN NUEVA PUERTA RITTAL\nSustitución de tapa marca Rittal existente por mismo modelo, incluyendo trabajo de troquelado y montaje de canaletas de la nueva puerta.",{"v":100,"d":"100.00 €"},1,{"$f":"C279*D279","v":{"v":100,"d":"100.00 €"}}]
[null,"PROGRAMACIÓN PLC Y PUESTA EN MARCHA\nConfiguración, parametrización y P.E.M. del PLC local, pruebas en taller y emplazamiento.",{"v":1450,"d":"1,450.00 €"},1,{"$f":"C280*D280","v":{"v":1450,"d":"1,450.00 €"}}]
[null,"PROGRAMACIÓN PANTALLA HMI\nConfiguración, parametrización pantalla HMI, pruebas en taller y emplazamiento.",{"v":500,"d":"500.00 €"},1,{"$f":"C281*D281","v":{"v":500,"d":"500.00 €"}}]
[null,"PROGRAMACIÓN COMUNICACIONES SWITCHES SHDSL\nConfiguración, parametrización y P.E.M de comunicaciones incluyendo pruebas en taller y emplazamiento, y borrado de anteriores comunicaciones.",{"v":400,"d":"400.00 €"},1,{"$f":"C282*D282","v":{"v":400,"d":"400.00 €"}}]
[null,"PROGRAMACIÓN SCADA\nModificación de la programación, pruebas y puesta en servicio de SCADA Intouch a consecuencia del nuevo hardware y del nuevo mapeado de comunicaciones. ",{"v":300,"d":"300.00 €"},1,{"$f":"C283*D283","v":{"v":300,"d":"300.00 €"}}]
["CAP.3","COMUNICACIONES SEGMENTO 3",null,null,{"$f":"E285+E294+E303+E312+E325+E337","v":{"v":23149.73,"d":"23,149.73 €"}}]
["CAP.3.1","BOMBEO AZPEITIA S7",null,null,{"$f":"SUM(E286:E293)","v":{"v":3703.8,"d":"3,703.80 €"}}]
[null,"SWITCH SHDSL 2 PUERTOS\nETIC 2 PUERTOS + BYPASS XSLAN + BP2400 // Siemens Scalance equivalente",{"v":1020.8,"d":"1,020.80 €"},1,{"$f":"D286*C286","v":{"v":1020.8,"d":"1,020.80 €"}}]
[null,"DESCARGADOR DE SOBRETENSIONES \nLÍNEA EQUIPO VALVETRAB PHOENIX CONTACT con 4 puertos",{"v":198,"d":"198.00 €"},1,{"$f":"D287*C287","v":{"v":198,"d":"198.00 €"}}]
[null,"CP343-1 LEAN\nMódulo Ethernet SIEMENS 6GK7343-1CX10-0XE0 en sustitución de tarjeta TIM.",{"v":770,"d":"770.00 €"},1,{"$f":"C288*D288","v":{"v":770,"d":"770.00 €"}}]
[null,"CONECTOR DE BUS\nSIEMENS 6ES7390-0AA00-0AA0 S7 // equivalente Schneider",{"v":15,"d":"15.00 €"},1,{"$f":"C289*D289","v":{"v":15,"d":"15.00 €"}}]
[null,"INSTALACIÓN Y CONEXIONADO\nIncluyendo cableado, borneros y pequeño material para su completo conexionado.",{"v":500,"d":"500.00 €"},1,{"$f":"C290*D290","v":{"v":500,"d":"500.00 €"}}]
[null,"PROGRAMACIÓN PLC Y PUESTA EN MARCHA\nConfiguración, parametrización y P.E.M. del PLC local, pruebas en taller y emplazamiento.",{"v":500,"d":"500.00 €"},1,{"$f":"C291*D291","v":{"v":500,"d":"500.00 €"}}]
[null,"PROGRAMACIÓN COMUNICACIONES SWITCHES SHDSL\nConfiguración, parametrización y P.E.M de comunicaciones incluyendo pruebas en taller y emplazamiento, y borrado de anteriores comunicaciones.",{"v":400,"d":"400.00 €"},1,{"$f":"C292*D292","v":{"v":400,"d":"400.00 €"}}]
[null,"PROGRAMACIÓN SCADA\nModificación de la programación, pruebas y puesta en servicio de SCADA Intouch a consecuencia del nuevo hardware y del nuevo mapeado de comunicaciones. ",{"v":300,"d":"300.00 €"},1,{"$f":"C293*D293","v":{"v":300,"d":"300.00 €"}}]
["CAP.3.2","BOMBEO EGURROLA S7",null,null,{"$f":"SUM(E295:E302)","v":{"v":3703.8,"d":"3,703.80 €"}}]
[null,"SWITCH SHDSL 2 PUERTOS\nETIC 2 PUERTOS + BYPASS XSLAN + BP2400 // Siemens Scalance equivalente",{"v":1020.8,"d":"1,020.80 €"},1,{"$f":"D295*C295","v":{"v":1020.8,"d":"1,020.80 €"}}]
[null,"DESCARGADOR DE SOBRETENSIONES \nLÍNEA EQUIPO VALVETRAB PHOENIX CONTACT con 4 puertos",{"v":198,"d":"198.00 €"},1,{"$f":"D296*C296","v":{"v":198,"d":"198.00 €"}}]
[null,"CP343-1 LEAN\nMódulo Ethernet SIEMENS 6GK7343-1CX10-0XE0 en sustitución de tarjeta TIM.",{"v":770,"d":"770.00 €"},1,{"$f":"C297*D297","v":{"v":770,"d":"770.00 €"}}]
[null,"CONECTOR DE BUS\nSIEMENS 6ES7390-0AA00-0AA0 S7 // equivalente Schneider",{"v":15,"d":"15.00 €"},1,{"$f":"C298*D298","v":{"v":15,"d":"15.00 €"}}]
[null,"INSTALACIÓN Y CONEXIONADO\nIncluyendo cableado, borneros y pequeño material para su completo conexionado.",{"v":500,"d":"500.00 €"},1,{"$f":"C299*D299","v":{"v":500,"d":"500.00 €"}}]
[null,"PROGRAMACIÓN PLC Y PUESTA EN MARCHA\nConfiguración, parametrización y P.E.M. del PLC local, pruebas en taller y emplazamiento.",{"v":500,"d":"500.00 €"},1,{"$f":"C300*D300","v":{"v":500,"d":"500.00 €"}}]
[null,"PROGRAMACIÓN COMUNICACIONES SWITCHES SHDSL\nConfiguración, parametrización y P.E.M de comunicaciones incluyendo pruebas en taller y emplazamiento, y borrado de anteriores comunicaciones.",{"v":400,"d":"400.00 €"},1,{"$f":"C301*D301","v":{"v":400,"d":"400.00 €"}}]
[null,"PROGRAMACIÓN SCADA\nModificación de la programación, pruebas y puesta en servicio de SCADA Intouch a consecuencia del nuevo hardware y del nuevo mapeado de comunicaciones.",{"v":300,"d":"300.00 €"},1,{"$f":"C302*D302","v":{"v":300,"d":"300.00 €"}}]
["CAP.3.3","DERIVACIÓN GALDOS S7",null,null,{"$f":"SUM(E304:E311)","v":{"v":3282.09,"d":"3,282.09 €"}}]
[null,"ROUTER VPN 4G\nETIC IPL-C-100.LE // Siemens Scalance equivalente  Inc. antena, kit montaje y cableado 310.",{"v":599.09,"d":"599.09 €"},1,{"$f":"C304*D304","v":{"v":599.09,"d":"599.09 €"}}]
[null,"DESCARGADOR DE SOBRETENSIONES \nLÍNEA EQUIPO VALVETRAB PHOENIX CONTACT con 4 puertos",{"v":198,"d":"198.00 €"},1,{"$f":"C305*D305","v":{"v":198,"d":"198.00 €"}}]
[null,"CP343-1 LEAN\nMódulo Ethernet SIEMENS 6GK7343-1CX10-0XE0 en sustitución de tarjeta TIM.",{"v":770,"d":"770.00 €"},1,{"$f":"C306*D306","v":{"v":770,"d":"770.00 €"}}]
[null,"CONECTOR DE BUS\nSIEMENS 6ES7390-0AA00-0AA0 S7 // equivalente Schneider",{"v":15,"d":"15.00 €"},1,{"$f":"C307*D307","v":{"v":15,"d":"15.00 €"}}]
[null,"INSTALACIÓN Y CONEXIONADO\nIncluyendo cableado, borneros y pequeño material para su completo conexionado.",{"v":500,"d":"500.00 €"},1,{"$f":"C308*D308","v":{"v":500,"d":"500.00 €"}}]
[null,"PROGRAMACIÓN PLC Y PUESTA EN MARCHA\nConfiguración, parametrización y P.E.M. del PLC local, pruebas en taller y emplazamiento.",{"v":500,"d":"500.00 €"},1,{"$f":"C309*D309","v":{"v":500,"d":"500.00 €"}}]
[null,"PROGRAMACIÓN COMUNICACIONES SWITCHES SHDSL\nConfiguración, parametrización y P.E.M de comunicaciones incluyendo pruebas en taller y emplazamiento, y borrado de anteriores comunicaciones.",{"v":400,"d":"400.00 €"},1,{"$f":"C310*D310","v":{"v":400,"d":"400.00 €"}}]
[null,"PROGRAMACIÓN SCADA\nModificación de la programación, pruebas y puesta en servicio de SCADA Intouch a consecuencia del nuevo hardware y del nuevo mapeado de comunicaciones. ",{"v":300,"d":"300.00 €"},1,{"$f":"C311*D311","v":{"v":300,"d":"300.00 €"}}]
["CAP.3.4","BOMBEO MEKOLETA S7",null,null,{"$f":"SUM(E313:E324)","v":{"v":6250.45,"d":"6,250.45 €"}}]
[null,"SWITCH SHDSL 1 PUERTO\nETIC 1 PUERTO XSLAN + 1400 /Siemenes Scalance equivalente",{"v":742.5,"d":"742.50 €"},1,{"$f":"D313*C313","v":{"v":742.5,"d":"742.50 €"}}]
[null,"DESCARGADOR DE SOBRETENSIONES \nLÍNEA EQUIPO VALVETRAB PHOENIX CONTACT con 4 puertos",{"v":198,"d":"198.00 €"},1,{"$f":"D314*C314","v":{"v":198,"d":"198.00 €"}}]
[null,"CPU ESTACIÓN REMOTA \nSIMATIC S7-1200 - 1214C 6ES7214-1AG40-0XB0 // SCHNEIDER TM251 MESE\n14 ED 24V DC; 10 SD 24 V DC; 2 EA incorporadas Siemens. \nTarjetas TM3DI16, TMDQ16T, TM3AI8 en el caso Schneider.",{"v":470,"d":"470.00 €"},1,{"$f":"C315*D315","v":{"v":470,"d":"470.00 €"}}]
[null,"MÓDULO DE 4 E.ANALÓGICAS\nSIMATIC S7-1200, SM 1231, 4 EA //6ES7231-4HF32-0XB0 // Schneider TM3AI8",{"v":250,"d":"250.00 €"},1,{"$f":"C316*D316","v":{"v":250,"d":"250.00 €"}}]
[null,"SIMATIC HMI LOCAL 7\" \nSiemens ETHERNET Y COLOR Basic Pantalla TFT Siemens // EQUIVALENTE SCHNEIDER",{"v":650,"d":"650.00 €"},1,{"$f":"C317*D317","v":{"v":650,"d":"650.00 €"}}]
[null,"PUERTA RITTAL AE 1250 RAL7035 \nen sustitución de la existente.",{"v":489.95,"d":"489.95 €"},1,{"$f":"C318*D318","v":{"v":489.95,"d":"489.95 €"}}]
[null,"INSTALACIÓN Y CONEXIONADO\nIncluyendo cableado, borneros y pequeño material para su completo conexionado.",{"v":700,"d":"700.00 €"},1,{"$f":"C319*D319","v":{"v":700,"d":"700.00 €"}}]
[null,"INSTALACIÓN NUEVA PUERTA RITTAL\nSustitución de tapa marca Rittal existente por mismo modelo, incluyendo trabajo de troquelado y montaje de canaletas de la nueva puerta.",{"v":100,"d":"100.00 €"},1,{"$f":"C320*D320","v":{"v":100,"d":"100.00 €"}}]
[null,"PROGRAMACIÓN PLC Y PUESTA EN MARCHA\nConfiguración, parametrización y P.E.M. del PLC local, pruebas en taller y emplazamiento.",{"v":1450,"d":"1,450.00 €"},1,{"$f":"C321*D321","v":{"v":1450,"d":"1,450.00 €"}}]
[null,"PROGRAMACIÓN PANTALLA HMI\nConfiguración, parametrización pantalla HMI, pruebas en taller y emplazamiento.",{"v":500,"d":"500.00 €"},1,{"$f":"C322*D322","v":{"v":500,"d":"500.00 €"}}]
[null,"PROGRAMACIÓN COMUNICACIONES SWITCHES SHDSL\nConfiguración, parametrización y P.E.M de comunicaciones incluyendo pruebas en taller y emplazamiento, y borrado de anteriores comunicaciones.",{"v":400,"d":"400.00 €"},1,{"$f":"C323*D323","v":{"v":400,"d":"400.00 €"}}]
[null,"PROGRAMACIÓN SCADA\nModificación de la programación, pruebas y puesta en servicio de SCADA Intouch a consecuencia del nuevo hardware y del nuevo mapeado de comunicaciones. ",{"v":300,"d":"300.00 €"},1,{"$f":"C324*D324","v":{"v":300,"d":"300.00 €"}}]
["CAP.3.5","DEPÓSITO MEKOLETA",null,null,{"$f":"SUM(E326:E336)","v":{"v":5509.59,"d":"5,509.59 €"}}]
[null,"SWITCH SHDSL 1 PUERTO\nETIC 1 PUERTO XSLAN + 1400 /Siemenes Scalance equivalente",{"v":742.5,"d":"742.50 €"},1,{"$f":"D326*C326","v":{"v":742.5,"d":"742.50 €"}}]
[null,"DESCARGADOR DE SOBRETENSIONES \nLÍNEA EQUIPO VALVETRAB PHOENIX CONTACT con 4 puertos",{"v":198,"d":"198.00 €"},1,{"$f":"D327*C327","v":{"v":198,"d":"198.00 €"}}]
[null,"ROUTER VPN 4G\nETIC IPL-C-100.LE // Siemens Scalance equivalente  Inc. antena, kit montaje y cableado 310.",{"v":599.09,"d":"599.09 €"},1,{"$f":"D328*C328","v":{"v":599.09,"d":"599.09 €"}}]
[null,"CPU ESTACIÓN REMOTA \nSIMATIC S7-1200 - 1214C 6ES7214-1AG40-0XB0 // SCHNEIDER TM251 MESE\n14 ED 24V DC; 10 SD 24 V DC; 2 EA incorporadas Siemens. \nTarjetas TM3DI16, TMDQ16T, TM3AI8 en el caso Schneider.",{"v":470,"d":"470.00 €"},1,{"$f":"C329*D329","v":{"v":470,"d":"470.00 €"}}]
[null,"MÓDULO DE 4 E.ANALÓGICAS\nSIMATIC S7-1200, SM 1231, 4 EA //6ES7231-4HF32-0XB0 // Schneider TM3AI8",{"v":250,"d":"250.00 €"},1,{"$f":"C330*D330","v":{"v":250,"d":"250.00 €"}}]
[null,"INSTALACIÓN Y CONEXIONADO\nIncluyendo cableado, borneros y pequeño material para su completo conexionado.",{"v":500,"d":"500.00 €"},1,{"$f":"C331*D331","v":{"v":500,"d":"500.00 €"}}]
[null,"INSTALACIÓN EN PUERTA RITTAL EXISTENTE\nTrabajo de troquelado y montaje de HMI.",{"v":100,"d":"100.00 €"},1,{"$f":"C332*D332","v":{"v":100,"d":"100.00 €"}}]
[null,"PROGRAMACIÓN PLC Y PUESTA EN MARCHA\nConfiguración, parametrización y P.E.M. del PLC local, pruebas en taller y emplazamiento.",{"v":1450,"d":"1,450.00 €"},1,{"$f":"C333*D333","v":{"v":1450,"d":"1,450.00 €"}}]
[null,"PROGRAMACIÓN PANTALLA HMI\nConfiguración, parametrización pantalla HMI, pruebas en taller y emplazamiento.",{"v":500,"d":"500.00 €"},1,{"$f":"C334*D334","v":{"v":500,"d":"500.00 €"}}]
[null,"PROGRAMACIÓN COMUNICACIONES SWITCHES SHDSL\nConfiguración, parametrización y P.E.M de comunicaciones incluyendo pruebas en taller y emplazamiento, y borrado de anteriores comunicaciones.",{"v":400,"d":"400.00 €"},1,{"$f":"C335*D335","v":{"v":400,"d":"400.00 €"}}]
[null,"PROGRAMACIÓN SCADA\nModificación de la programación, pruebas y puesta en servicio de SCADA Intouch a consecuencia del nuevo hardware y del nuevo mapeado de comunicaciones. ",{"v":300,"d":"300.00 €"},1,{"$f":"C336*D336","v":{"v":300,"d":"300.00 €"}}]
["CAP.3.6","PRESA IBAIEDER",null,null,{"$f":"SUM(E338:E339)","v":{"v":700,"d":"700.00 €"}}]
[null,"PROGRAMACIÓN COMUNICACIONES SWITCHES SHDSL\nConfiguración, parametrización y P.E.M de comunicaciones incluyendo pruebas en taller y emplazamiento, y borrado de anteriores comunicaciones.",{"v":400,"d":"400.00 €"},1,{"$f":"C338*D338","v":{"v":400,"d":"400.00 €"}}]
[null,"PROGRAMACIÓN SCADA\nModificación de la programación, pruebas y puesta en servicio de SCADA Intouch a consecuencia del nuevo hardware y del nuevo mapeado de comunicaciones.",{"v":300,"d":"300.00 €"},1,{"$f":"C339*D339","v":{"v":300,"d":"300.00 €"}}]
["CAP.4","DOCUMENTACIÓN AS-BUILT",null,null,{"$f":"E341","v":{"v":2560,"d":"2,560.00 €"}}]
[null,"Actualización de planos eléctricos EPLAN, entrega de programa fuente PLC, SCADA, listado de señales, fichas técnicas de equipos instalados, certificados de gestión de residuos.",{"v":2560,"d":"2,560.00 €"},1,{"$f":"C341*D341","v":{"v":2560,"d":"2,560.00 €"}}]
[]
[null,"TARJETA MODBUS CM 1241, RS422/485, 9-pole D-sub (socket) PARA CAUDALÍMETROS. Incluido terminal block, cableado, pequeño material, etc.",145.04,2,{"$f":"D343*C343","v":290.08}]
[null,"TARJETA MODBUS RTU/RS485 para comunicación caudalímetro Siemens MAG 6000 FDK:085U0234",130,2,{"$f":"D344*C344","v":260}]